Workbook

Sheet 基金綜合報表
A1: 0050 | B1: <<請輸入欲查詢的基金代碼(英文字請輸入大寫)，然後按[REFRESH]更新版面
A2: 基金基本資料 | N2: 風險控管
A3: 基金代碼 | B3: =LEFT(基金屬性!A1,FIND(" ",基金屬性!A1)) -> 0050 | D3: 基金簡稱 | E3: =MID(基金屬性!A1,FIND(" ",基金屬性!A1)+1,10) -> 元大台灣50 | H3: 統 編 | I3: =RIGHT(REPT(0,8)&基金屬性!A3,8) -> 98764389 | N3: 資料日期 | O3: =TEXT(淨值及報酬!B2,"YYYY/MM/DD") -> 2017/09/12
A4: 中/英文名稱 | B4: =基金屬性!B3 -> 元大台灣卓越50證券投資信託基金 | F4: =基金屬性!C3 -> Yuanta/P-shares Taiwan Top 50 ETF | N4: 淨值(元) | O4: =淨值及報酬!B3 -> 83.17
A5: 現任基金經理人 | B5: =IF(基金屬性!D3="","",基金屬性!D3) -> 張美媛(2010/05/18到任) | E5: =IF(基金屬性!E3="","",基金屬性!E3) ->  | H5: 經理費 | I5: =IF(基金屬性!O3="","",基金屬性!O3) -> 0 | J5: ~ | K5: =IF(基金屬性!N3="","",基金屬性!N3) -> 0.32 | L5: % | N5: 日報酬率% | O5: =淨值及報酬!B4 -> 0.44686
A6: 基金類型 | B6: =IF(基金屬性!F3="","",基金屬性!F3) -> 國內指數-一般ETF | H6: 保管費 | I6: =IF(基金屬性!Q3="","",基金屬性!Q3) -> 0 | J6: ~ | K6: =IF(基金屬性!P3="","",基金屬性!P3) -> 0.035 | L6: % | N6: 12個月
A7: 傘狀基金 | B7: =基金屬性!G3 -> N | C7: 成員 | D7: =IF($B$7="N","",基金屬性!H3) ->  | F7: =IF($B$7="N","",基金屬性!I3) ->  | H7: 銷售費 | I7: =IF(基金屬性!S3="","",基金屬性!S3) -> 0 | J7: ~ | K7: =IF(基金屬性!R3="","",基金屬性!R3) -> 2 | L7: % | N7: 年化標準差 | O7: =IF(風險控管!B3="",IF(風險控管!C3="","",風險控管!C3),風險控管!B3) -> 5.6302
A8: 成立資產 | B8: =基金屬性!J3 -> 260820 | D8: (千元) | E8: =TEXT(基金屬性!K3,"YYYY/MM/DD") -> 2003/06/25 | G8: 成立 | H8: 贖回費 | I8: 每筆 | J8: =IF(基金屬性!T3="","",基金屬性!T3) -> 0 | L8: 元 | N8: BETA值 | O8: =IF(風險控管!B4="",IF(風險控管!C4="","",風險控管!C4),風險控管!B4) -> 1.008
A9: 型 態 | B9: =基金屬性!L3 -> 國內募集,投資國內 | H9: 標 的 | I9: =基金屬性!M3 -> ETF | N9: SHARPE值 | O9: =IF(風險控管!B5="",IF(風險控管!C5="","",風險控管!C5),風險控管!B5) -> 1.0443
A10: 基金淨資產 | B10: =淨值及報酬!E3 -> 0 | D10: (千元) 資料時間 | F10: =TEXT(淨值及報酬!E2,"YYYY/MM/DD") -> 1900/01/00 | H10: 受益人大會費用 | J10: =IF(基金屬性!U3="","",基金屬性!U3) -> 50 | L10: 萬元 | N10: IR值 | O10: =IF(風險控管!B6="",IF(風險控管!C6="","",風險控管!C6),風險控管!B6) -> 0.0534
B11: ㄧ個月 | D11: 三個月 | F11: 六個月 | H11: ㄧ年 | J11: 三年 | N11: 24個月
A12: 同類基金排名 | B12: =IF(基金Profile!A3="","",基金Profile!A3) -> 12/17 | D12: =IF(基金Profile!B3="","",基金Profile!B3) -> 5/16 | F12: =IF(基金Profile!C3="","",基金Profile!C3) -> 4/14 | H12: =IF(基金Profile!D3="","",基金Profile!D3) -> 6/14 | J12: =IF(基金Profile!E3="","",基金Profile!E3) -> 4/14 | N12: 年化標準差 | O12: =IF(風險控管!B7="",IF(風險控管!C7="","",風險控管!C7),風險控管!B7) -> 9.0342
A13: 報酬率% | B13: =IF(基金Profile!A6="","",基金Profile!A6) -> 2.09 | D13: =IF(基金Profile!B6="","",基金Profile!B6) -> 9.15 | F13: =IF(基金Profile!C6="","",基金Profile!C6) -> 16.46 | H13: =IF(基金Profile!D6="","",基金Profile!D6) -> 24.68 | J13: =IF(基金Profile!E6="","",基金Profile!E6) -> 35.8 | N13: BETA值 | O13: =IF(風險控管!B8="",IF(風險控管!C8="","",風險控管!C8),風險控管!B8) -> 1.0753
A14: BANCHMARK% | B14: =IF(基金Profile!A9="","",基金Profile!A9) -> 2.72 | D14: =IF(基金Profile!B9="","",基金Profile!B9) -> 4.95 | F14: =IF(基金Profile!C9="","",基金Profile!C9) -> 10.2 | H14: =IF(基金Profile!D9="","",基金Profile!D9) -> 18.59 | J14: =IF(基金Profile!E9="","",基金Profile!E9) -> 15.04 | N14: SHARPE值 | O14: =IF(風險控管!B9="",IF(風險控管!C9="","",風險控管!C9),風險控管!B9) -> 0.588
A15: 同類基金平均% | B15: =IF(基金Profile!A12="","",基金Profile!A12) -> 1.63 | D15: =IF(基金Profile!B12="","",基金Profile!B12) -> 4.04 | F15: =IF(基金Profile!C12="","",基金Profile!C12) -> 6.96 | H15: =IF(基金Profile!D12="","",基金Profile!D12) -> 14.42 | J15: =IF(基金Profile!E12="","",基金Profile!E12) -> 33.58 | N15: IR值 | O15: =IF(風險控管!B10="",IF(風險控管!C10="","",風險控管!C10),風險控管!B10) -> 0.1106
A17: 基金投資組合－產業別
A18: 產業別 | C18: 投資率 | D18: 比上月 | E18: 比重
C19: % | D19: 增減% | E19: 排名
A20: =IF(OR('投資組合-產品別'!$B3="",'投資組合-產品別'!$B3=0),"",'投資組合-產品別'!$A3) -> M2324 半導體業 | C20: =IF($A20="","",VLOOKUP($A20,XX_TEJ14,2,FALSE)) -> 36.53 | D20: =IF($A20="","",VLOOKUP($A20,'投資組合-產品別'!$A:$G,7,FALSE)) -> 0.27 | E20: =IF(A20="","",1) -> 1
A21: =IF(OR('投資組合-產品別'!$B4="",'投資組合-產品別'!$B4=0),"",'投資組合-產品別'!$A4) -> M2800 金融保險 | C21: 15.89 | D21: =IF($A21="","",VLOOKUP($A21,'投資組合-產品別'!$A:$G,7,FALSE)) -> -0.05 | E21: =IF(A21="","",E20+1) -> 2
A22: =IF(OR('投資組合-產品別'!$B5="",'投資組合-產品別'!$B5=0),"",'投資組合-產品別'!$A5) -> M2331 其他電子業 | C22: 12.42 | D22: =IF($A22="","",VLOOKUP($A22,'投資組合-產品別'!$A:$G,7,FALSE)) -> -0.2 | E22: =IF(A22="","",E21+1) -> 3
A23: =IF(OR('投資組合-產品別'!$B6="",'投資組合-產品別'!$B6=0),"",'投資組合-產品別'!$A6) -> M1300 塑膠工業 | C23: 7.2 | D23: =IF($A23="","",VLOOKUP($A23,'投資組合-產品別'!$A:$G,7,FALSE)) -> 0.15 | E23: =IF(A23="","",E22+1) -> 4
A24: =IF(OR('投資組合-產品別'!$B7="",'投資組合-產品別'!$B7=0),"",'投資組合-產品別'!$A7) -> M2326 光電業 | C24: 4.96 | D24: =IF($A24="","",VLOOKUP($A24,'投資組合-產品別'!$A:$G,7,FALSE)) -> 0.2 | E24: 5
A25: =IF(OR('投資組合-產品別'!$B8="",'投資組合-產品別'!$B8=0),"",'投資組合-產品別'!$A8) -> M2325 電腦及週邊設備業 | C25: 4.74 | D25: =IF($A25="","",VLOOKUP($A25,'投資組合-產品別'!$A:$G,7,FALSE)) -> -0.1 | E25: 6
A26: =IF(OR('投資組合-產品別'!$B9="",'投資組合-產品別'!$B9=0),"",'投資組合-產品別'!$A9) -> M2327 通訊網路業 | C26: 4.03 | D26: =IF($A26="","",VLOOKUP($A26,'投資組合-產品別'!$A:$G,7,FALSE)) -> 0.01 | E26: 7
A27: =IF(OR('投資組合-產品別'!$B10="",'投資組合-產品別'!$B10=0),"",'投資組合-產品別'!$A10) -> M2328 電子零組件 | C27: 2.07 | D27: =IF($A27="","",VLOOKUP($A27,'投資組合-產品別'!$A:$G,7,FALSE)) -> 0.02 | E27: 8
A28: =IF(OR('投資組合-產品別'!$B11="",'投資組合-產品別'!$B11=0),"",'投資組合-產品別'!$A11) -> M1200 食品工業 | C28: 1.84 | D28: =IF($A28="","",VLOOKUP($A28,'投資組合-產品別'!$A:$G,7,FALSE)) -> 0.19 | E28: 9
A29: =IF(OR('投資組合-產品別'!$B12="",'投資組合-產品別'!$B12=0),"",'投資組合-產品別'!$A12) -> M2000 鋼鐵工業 | C29: 1.83 | D29: =IF($A29="","",VLOOKUP($A29,'投資組合-產品別'!$A:$G,7,FALSE)) -> 0 | E29: 10
A30: =IF(OR('投資組合-產品別'!$B13="",'投資組合-產品別'!$B13=0),"",'投資組合-產品別'!$A13) -> M1100 水泥工業 | C30: 1.01 | D30: =IF($A30="","",VLOOKUP($A30,'投資組合-產品別'!$A:$G,7,FALSE)) -> -0.01 | E30: 11
A31: =IF(OR('投資組合-產品別'!$B14="",'投資組合-產品別'!$B14=0),"",'投資組合-產品別'!$A14) -> M9700 油電燃氣業 | C31: 0.86 | D31: =IF($A31="","",VLOOKUP($A31,'投資組合-產品別'!$A:$G,7,FALSE)) -> 0.01 | E31: 12
A32: =IF(OR('投資組合-產品別'!$B15="",'投資組合-產品別'!$B15=0),"",'投資組合-產品別'!$A15) -> M2200 汽車工業 | C32: 0.84 | D32: =IF($A32="","",VLOOKUP($A32,'投資組合-產品別'!$A:$G,7,FALSE)) -> -0.02 | E32: 13
A33: =IF(OR('投資組合-產品別'!$B16="",'投資組合-產品別'!$B16=0),"",'投資組合-產品別'!$A16) -> M2900 貿易百貨 | C33: 0.82 | D33: =IF($A33="","",VLOOKUP($A33,'投資組合-產品別'!$A:$G,7,FALSE)) -> -0.02 | E33: =IF(A33="","",E32+1) -> 14
A34: =IF(OR('投資組合-產品別'!$B17="",'投資組合-產品別'!$B17=0),"",'投資組合-產品別'!$A17) -> M2100 橡膠工業 | C34: 0.66 | D34: =IF($A34="","",VLOOKUP($A34,'投資組合-產品別'!$A:$G,7,FALSE)) -> 0.01 | E34: 15
A35: =IF(OR('投資組合-產品別'!$B18="",'投資組合-產品別'!$B18=0),"",'投資組合-產品別'!$A18) -> M9900 其他 | C35: 0.61 | D35: =IF($A35="","",VLOOKUP($A35,'投資組合-產品別'!$A:$G,7,FALSE)) -> -0.02 | E35: 16
A36: =IF(OR('投資組合-產品別'!$B19="",'投資組合-產品別'!$B19=0),"",'投資組合-產品別'!$A19) -> M1400 紡織纖維 | C36: 0.56 | D36: =IF($A36="","",VLOOKUP($A36,'投資組合-產品別'!$A:$G,7,FALSE)) -> -0.01 | E36: 17
A37: =IF(OR('投資組合-產品別'!$B20="",'投資組合-產品別'!$B20=0),"",'投資組合-產品別'!$A20) -> M2600 航運業 | C37: 0.31 | D37: =IF($A37="","",VLOOKUP($A37,'投資組合-產品別'!$A:$G,7,FALSE)) -> 0 | E37: 18
A38: =IF(OR('投資組合-產品別'!$B21="",'投資組合-產品別'!$B21=0),"",'投資組合-產品別'!$A21) ->  | D38: =IF($A38="","",VLOOKUP($A38,'投資組合-產品別'!$A:$G,7,FALSE)) -> 
A39: =IF(OR('投資組合-產品別'!$B22="",'投資組合-產品別'!$B22=0),"",'投資組合-產品別'!$A22) ->  | D39: =IF($A39="","",VLOOKUP($A39,'投資組合-產品別'!$A:$G,7,FALSE)) -> 
A40: =IF(OR('投資組合-產品別'!$B23="",'投資組合-產品別'!$B23=0),"",'投資組合-產品別'!$A23) ->  | D40: =IF($A40="","",VLOOKUP($A40,'投資組合-產品別'!$A:$G,7,FALSE)) -> 
A41: =IF(OR('投資組合-產品別'!$B24="",'投資組合-產品別'!$B24=0),"",'投資組合-產品別'!$A24) ->  | D41: =IF($A41="","",VLOOKUP($A41,'投資組合-產品別'!$A:$G,7,FALSE)) -> 
A42: 現金部位估計 | C42: ='投資組合-產品別'!B84 -> 2.82 | D42: ='投資組合-產品別'!G84 -> -0.43 | E42: --
A43: 國內合計 | C43: ='投資組合-產品別'!B83 -> 97.18 | D43: ='投資組合-產品別'!G83 -> 0.43 | E43: --
A44: 國外合計 | C44: ='投資組合-產品別'!B82 -> 0 | D44: ='投資組合-產品別'!G82 -> 0 | E44: --
A46: 基金投資組合－個股別
A47: 證券別 | B47: 投資率 | C47: 持股數/ | D47: 個股 | E47: 比重
A48: =IF(A49="","本月未公告個股","") ->  | B48: % | C48: 流通在外 | D48: 月報酬% | E48: 排名
A49: =IF(OR('投資組合-個股別'!$A4="",LEFT('投資組合-個股別'!$A4,1)="M",LEFT('投資組合-個股別'!$A4,1)="T"),"",'投資組合-個股別'!$A4) -> 2330 台積電 | B49: =IF($A49="","",VLOOKUP($A49,XX_TEJ16,2,FALSE)) -> 30.44 | C49: =IF($A49="","",VLOOKUP($A49,XX_TEJ16,3,FALSE)) -> 0 | D49: =IF($A49="","",VLOOKUP($A49,XX_TEJ16,4,FALSE)) -> 0.9323 | E49: =IF($A49="","",1) -> 1
A50: =IF(OR('投資組合-個股別'!$A5="",LEFT('投資組合-個股別'!$A5,1)="M",LEFT('投資組合-個股別'!$A5,1)="T"),"",'投資組合-個股別'!$A5) -> 2317 鴻海 | B50: 10.26 | C50: 0 | D50: 0.0001 | E50: =IF($A50="","",E49+1) -> 2
A51: =IF(OR('投資組合-個股別'!$A6="",LEFT('投資組合-個股別'!$A6,1)="M",LEFT('投資組合-個股別'!$A6,1)="T"),"",'投資組合-個股別'!$A6) -> 3008 大立光 | B51: 3.5 | C51: 0 | D51: 7.0203 | E51: =IF($A51="","",E50+1) -> 3
A52: =IF(OR('投資組合-個股別'!$A7="",LEFT('投資組合-個股別'!$A7,1)="M",LEFT('投資組合-個股別'!$A7,1)="T"),"",'投資組合-個股別'!$A7) -> 1301 台塑 | B52: 2.68 | C52: 0 | D52: 3.6425 | E52: 4
A53: =IF(OR('投資組合-個股別'!$A8="",LEFT('投資組合-個股別'!$A8,1)="M",LEFT('投資組合-個股別'!$A8,1)="T"),"",'投資組合-個股別'!$A8) -> 1303 南亞 | B53: 2.52 | C53: 0 | D53: 0.2631 | E53: 5
A54: =IF(OR('投資組合-個股別'!$A9="",LEFT('投資組合-個股別'!$A9,1)="M",LEFT('投資組合-個股別'!$A9,1)="T"),"",'投資組合-個股別'!$A9) -> 
A55: =IF(OR('投資組合-個股別'!$A10="",LEFT('投資組合-個股別'!$A10,1)="M",LEFT('投資組合-個股別'!$A10,1)="T"),"",'投資組合-個股別'!$A10) -> 
A56: =IF(OR('投資組合-個股別'!$A11="",LEFT('投資組合-個股別'!$A11,1)="M",LEFT('投資組合-個股別'!$A11,1)="T"),"",'投資組合-個股別'!$A11) -> 
A57: =IF(OR('投資組合-個股別'!$A12="",LEFT('投資組合-個股別'!$A12,1)="M",LEFT('投資組合-個股別'!$A12,1)="T"),"",'投資組合-個股別'!$A12) -> 
A58: =IF(OR('投資組合-個股別'!$A13="",LEFT('投資組合-個股別'!$A13,1)="M",LEFT('投資組合-個股別'!$A13,1)="T"),"",'投資組合-個股別'!$A13) -> 
A59: =IF(OR('投資組合-個股別'!$A14="",LEFT('投資組合-個股別'!$A14,1)="M",LEFT('投資組合-個股別'!$A14,1)="T"),"",'投資組合-個股別'!$A14) -> 
A60: =IF(OR('投資組合-個股別'!$A15="",LEFT('投資組合-個股別'!$A15,1)="M",LEFT('投資組合-個股別'!$A15,1)="T"),"",'投資組合-個股別'!$A15) -> 
A61: =IF(OR('投資組合-個股別'!$A16="",LEFT('投資組合-個股別'!$A16,1)="M",LEFT('投資組合-個股別'!$A16,1)="T"),"",'投資組合-個股別'!$A16) -> 
A62: =IF(OR('投資組合-個股別'!$A17="",LEFT('投資組合-個股別'!$A17,1)="M",LEFT('投資組合-個股別'!$A17,1)="T"),"",'投資組合-個股別'!$A17) -> 
A63: =IF(OR('投資組合-個股別'!$A18="",LEFT('投資組合-個股別'!$A18,1)="M",LEFT('投資組合-個股別'!$A18,1)="T"),"",'投資組合-個股別'!$A18) -> 
A64: =IF(OR('投資組合-個股別'!$A19="",LEFT('投資組合-個股別'!$A19,1)="M",LEFT('投資組合-個股別'!$A19,1)="T"),"",'投資組合-個股別'!$A19) -> 
A65: =IF(OR('投資組合-個股別'!$A20="",LEFT('投資組合-個股別'!$A20,1)="M",LEFT('投資組合-個股別'!$A20,1)="T"),"",'投資組合-個股別'!$A20) -> 
A66: =IF(OR('投資組合-個股別'!$A21="",LEFT('投資組合-個股別'!$A21,1)="M",LEFT('投資組合-個股別'!$A21,1)="T"),"",'投資組合-個股別'!$A21) -> 
A67: =IF(OR('投資組合-個股別'!$A22="",LEFT('投資組合-個股別'!$A22,1)="M",LEFT('投資組合-個股別'!$A22,1)="T"),"",'投資組合-個股別'!$A22) -> 
A68: =IF(OR('投資組合-個股別'!$A23="",LEFT('投資組合-個股別'!$A23,1)="M",LEFT('投資組合-個股別'!$A23,1)="T"),"",'投資組合-個股別'!$A23) -> 
A69: =IF(OR('投資組合-個股別'!$A24="",LEFT('投資組合-個股別'!$A24,1)="M",LEFT('投資組合-個股別'!$A24,1)="T"),"",'投資組合-個股別'!$A24) -> 
A70: =IF(OR('投資組合-個股別'!$A25="",LEFT('投資組合-個股別'!$A25,1)="M",LEFT('投資組合-個股別'!$A25,1)="T"),"",'投資組合-個股別'!$A25) -> 
A71: =IF(OR('投資組合-個股別'!$A26="",LEFT('投資組合-個股別'!$A26,1)="M",LEFT('投資組合-個股別'!$A26,1)="T"),"",'投資組合-個股別'!$A26) -> 
A72: =IF(OR('投資組合-個股別'!$A27="",LEFT('投資組合-個股別'!$A27,1)="M",LEFT('投資組合-個股別'!$A27,1)="T"),"",'投資組合-個股別'!$A27) -> 
A73: =IF(OR('投資組合-個股別'!$A28="",LEFT('投資組合-個股別'!$A28,1)="M",LEFT('投資組合-個股別'!$A28,1)="T"),"",'投資組合-個股別'!$A28) -> 

Sheet 基金屬性
A1: 0050 元大台灣50
A2: 基金統編 | B2: 基金全稱 | C2: 基金英文全稱 | D2: 現任經理人Ａ | E2: 現任經理人Ｂ | F2: 公會分類 | G2: 傘狀基金 | H2: 傘狀基金成員1 | I2: 傘狀基金成員2 | J2: 成立資產 | K2: 成立日 | L2: 型態 | M2: 投資標的 | N2: 經理費上限% | O2: 經理費下限% | P2: 保管費上限% | Q2: 保管費下限% | R2: 銷售費上限% | S2: 銷售費下限% | T2: 贖回費(元) | U2: 受益人大會費用(萬元)
A3: 98764389 | B3: 元大台灣卓越50證券投資信託基金 | C3: Yuanta/P-shares Taiwan Top 50 ETF | D3: 張美媛(2010/05/18到任) | F3: 國內指數-一般ETF | G3: N | J3: 260820 | K3: 2003-06-25 | L3: 國內募集,投資國內 | M3: ETF | N3: 0.32 | O3: 0 | P3: 0.035 | Q3: 0 | R3: 2 | S3: 0 | T3: 0 | U3: 50

Sheet 淨值及報酬
A1: 0050 元大台灣50
A2: Data Field | B2: 2017-09-12 | D2: 基金淨資產
A3: 淨值(元) | B3: 83.17
A4: 淨值變動率%-日 | B4: 0.44686
A5: 近一個月變動率% | B5: 2.086658
A6: 近三個月變動率% | B6: 9.151521
A7: 近半年變動率% | B7: 16.455566
A8: 近一年變動率% | B8: 24.677568
A9: 近三年變動率% | B9: 35.800469

Sheet 風險控管
A1: 0050 元大台灣50
A2: Data Field | B2: 2017-09-30 | C2: 2017-08-31
A3: 年化標準差--12個月 | B3: 5.6302 | C3: 5.6206
A4: beta--12個月 | B4: 1.008 | C4: 1.0728
A5: Sharpe Index-12個月 | B5: 1.0443 | C5: 1.0296
A6: IR--12個月（大分類） | B6: 0.0534 | C6: 0.2028
A7: 年化標準差--24個月 | B7: 9.0342 | C7: 9.3304
A8: beta--24個月 | B8: 1.0753 | C8: 1.1084
A9: Sharpe Index-24個月 | B9: 0.588 | C9: 0.51
A10: IR--24個月（大分類） | B10: 0.1106 | C10: 0.0807
A11: 淨值 | B11: 83.17 | C11: 83.06

Sheet 基金Profile
A1: 0050 元大台灣50
A2: 一個月排名 | B2: 三個月排名 | C2: 六個月排名 | D2: 一年排名 | E2: 三年排名 | F2: 基金淨資產
A3: 12/17 | B3: 5/16 | C3: 4/14 | D3: 6/14 | E3: 4/14 | F3: 45802812
A5: 一個月報酬率 | B5: 三個月報酬率 | C5: 六個月報酬率 | D5: 一年報酬率 | E5: 三年報酬率 | F5: 基金淨資產
A6: 1900-01-02T02:09:36 | B6: 9.15 | C6: 16.46 | D6: 24.68 | E6: 35.8 | F6: 45802812
A8: 一個月Benchmark ROI | B8: 三個月Benchmark ROI | C8: 六個月Benchmark ROI | D8: 一年Benchmark ROI | E8: 三年Benchmark ROI | F8: 基金淨資產
A9: 1900-01-02T17:16:48 | B9: 4.95 | C9: 10.2 | D9: 18.59 | E9: 15.04 | F9: 45802812
A11: 一個月基金平均 | B11: 三個月基金平均 | C11: 六個月基金平均 | D11: 一年基金平均 | E11: 三年基金平均 | F11: 基金淨資產
A12: 1900-01-01T15:07:12 | B12: 4.04 | C12: 6.96 | D12: 14.42 | E12: 33.58 | F12: 45802812

Sheet 投資組合-個股別
A1: 0050 元大台灣50
B2: 2017-08-31 | C2: 2017-08-31 | D2: 2017-08-31
A3: 投資證券代碼 | B3: 投資比率％ | C3: 持股數/流通在外股數% | D3: 個股月報酬率％
A4: 2330 台積電 | B4: 30.44 | D4: 0.9323
A5: 2317 鴻海 | B5: 10.26 | D5: 0.0001
A6: 3008 大立光 | B6: 3.5 | D6: 7.0203
A7: 1301 台塑 | B7: 2.68 | D7: 3.6425
A8: 1303 南亞 | B8: 2.52 | D8: 0.2631
A9: M1300 塑膠工業 | B9: 5.2 | D9: 3.0183
A10: M2300 電子工業 | B10: 44.2 | D10: 1.4634

Sheet 投資組合-產品別
A1: 0050 元大台灣50
A2: Data Field | B2: 2017-09-08 | C2: 2017-09-01 | D2: 2017-08-25 | E2: 2017-08-18 | F2: 2017-08-11 | G2: 較上月比*
A3: M2324 半導體業 | B3: 36.53 | C3: 36.15 | D3: 36.33 | E3: 36.21 | F3: 36.26 | G3: =B3-F3 -> 0.27
A4: M2800 金融保險 | B4: 15.89 | C4: 15.93 | D4: 15.82 | E4: 15.99 | F4: 15.94 | G4: -0.05
A5: M2331 其他電子業 | B5: 12.42 | C5: 12.54 | D5: 12.46 | E5: 12.57 | F5: 12.62 | G5: -0.2
A6: M1300 塑膠工業 | B6: 7.2 | C6: 7.08 | D6: 7.07 | E6: 7.11 | F6: 7.05 | G6: 0.15
A7: M2326 光電業 | B7: 4.96 | C7: 4.89 | D7: 4.97 | E7: 4.73 | F7: 4.76 | G7: 0.2
A8: M2325 電腦及週邊設備業 | B8: 4.74 | C8: 4.77 | D8: 4.73 | E8: 4.79 | F8: 4.84 | G8: -0.1
A9: M2327 通訊網路業 | B9: 4.03 | C9: 4.02 | D9: 4 | E9: 4.04 | F9: 4.02 | G9: 0.01
A10: M2328 電子零組件 | B10: 2.07 | C10: 2.07 | D10: 2.04 | E10: 2.07 | F10: 2.05 | G10: 0.02
A11: M1200 食品工業 | B11: 1.84 | C11: 1.79 | D11: 1.81 | E11: 1.72 | F11: 1.65 | G11: 0.19
A12: M2000 鋼鐵工業 | B12: 1.83 | C12: 1.82 | D12: 1.85 | E12: 1.83 | F12: 1.83 | G12: 0
A13: M1100 水泥工業 | B13: 1.01 | C13: 1.02 | D13: 1.03 | E13: 1.03 | F13: 1.02 | G13: -0.01
A14: M9700 油電燃氣業 | B14: 0.86 | C14: 0.85 | D14: 0.84 | E14: 0.83 | F14: 0.85 | G14: 0.01
A15: M2200 汽車工業 | B15: 0.84 | C15: 0.83 | D15: 0.84 | E15: 0.82 | F15: 0.86 | G15: -0.02
A16: M2900 貿易百貨 | B16: 0.82 | C16: 0.83 | D16: 0.83 | E16: 0.84 | F16: 0.84 | G16: -0.02
A17: M2100 橡膠工業 | B17: 0.66 | C17: 0.64 | D17: 0.64 | E17: 0.65 | F17: 0.65 | G17: 0.01
A18: M9900 其他 | B18: 0.61 | C18: 0.62 | D18: 0.61 | E18: 0.63 | F18: 0.63 | G18: -0.02
A19: M1400 紡織纖維 | B19: 0.56 | C19: 0.55 | D19: 0.56 | E19: 0.57 | F19: 0.57 | G19: -0.01
A20: M2600 航運業 | B20: 0.31 | C20: 0.32 | D20: 0.32 | E20: 0.31 | F20: 0.31 | G20: 0
A21: M0000 特殊 | B21: 0 | C21: 0 | D21: 0 | E21: 0 | F21: 0 | G21: 0
A22: M1500 電機機械 | B22: 0 | C22: 0 | D22: 0 | E22: 0 | F22: 0 | G22: 0
A23: M1600 電器電纜 | B23: 0 | C23: 0 | D23: 0 | E23: 0 | F23: 0 | G23: 0
A24: M1721 化學工業 | B24: 0 | C24: 0 | D24: 0 | E24: 0 | F24: 0 | G24: 0
A25: M1722 生技醫療業 | B25: 0 | C25: 0 | D25: 0 | E25: 0 | F25: 0 | G25: 0
A26: M1800 玻璃陶瓷 | B26: 0 | C26: 0 | D26: 0 | E26: 0 | F26: 0 | G26: 0
A27: M1900 造紙工業 | B27: 0 | C27: 0 | D27: 0 | E27: 0 | F27: 0 | G27: 0
A28: M2329 電子通路業 | B28: 0 | C28: 0 | D28: 0 | E28: 0 | F28: 0 | G28: 0
A29: M2330 資訊服務業 | B29: 0 | C29: 0 | D29: 0 | E29: 0 | F29: 0 | G29: 0
A30: M2500 建材營造 | B30: 0 | C30: 0 | D30: 0 | E30: 0 | F30: 0 | G30: 0
A31: M2700 觀光事業 | B31: 0 | C31: 0 | D31: 0 | E31: 0 | F31: 0 | G31: 0
A32: M9800 綜合產業 | B32: 0 | C32: 0 | D32: 0 | E32: 0 | F32: 0 | G32: 0
A33: MUUUU 承銷 | B33: 0 | C33: 0 | D33: 0 | E33: 0 | F33: 0 | G33: 0
A34: MWWWW 認購權證 | B34: 0 | C34: 0 | D34: 0 | E34: 0 | F34: 0 | G34: 0
A35: OTC00 OTC 特殊 | B35: 0 | C35: 0 | D35: 0 | E35: 0 | F35: 0 | G35: =B35-F35 -> 0
A36: OTC12 OTC 食品類 | B36: 0 | C36: 0 | D36: 0 | E36: 0 | F36: 0 | G36: 0
A37: OTC13 OTC 塑膠類 | B37: 0 | C37: 0 | D37: 0 | E37: 0 | F37: 0 | G37: 0
A38: OTC14 OTC 紡織 | B38: 0 | C38: 0 | D38: 0 | E38: 0 | F38: 0 | G38: 0
A39: OTC15 OTC 電機 | B39: 0 | C39: 0 | D39: 0 | E39: 0 | F39: 0 | G39: 0
A40: OTC16 OTC 電纜類 | B40: 0 | C40: 0 | D40: 0 | E40: 0 | F40: 0 | G40: 0
A41: O1721 OTC 化學工業 | B41: 0 | C41: 0 | D41: 0 | E41: 0 | F41: 0 | G41: 0
A42: O1722 OTC 生技醫療 | B42: 0 | C42: 0 | D42: 0 | E42: 0 | F42: 0 | G42: 0
A43: OTC18 OTC 玻璃 | B43: 0 | C43: 0 | D43: 0 | E43: 0 | F43: 0 | G43: 0
A44: OTC20 OTC 鋼鐵類 | B44: 0 | C44: 0 | D44: 0 | E44: 0 | F44: 0 | G44: 0
A45: OTC21 OTC 橡膠類 | B45: 0 | C45: 0 | D45: 0 | E45: 0 | F45: 0 | G45: 0
A46: O2324 OTC 半導體業 | B46: 0 | C46: 0 | D46: 0 | E46: 0 | F46: 0 | G46: 0
A47: O2325 OTC 電腦及週邊設備業 | B47: 0 | C47: 0 | D47: 0 | E47: 0 | F47: 0 | G47: 0
A48: O2326 OTC 光電業 | B48: 0 | C48: 0 | D48: 0 | E48: 0 | F48: 0 | G48: 0
A49: O2327 OTC 通訊網路業 | B49: 0 | C49: 0 | D49: 0 | E49: 0 | F49: 0 | G49: 0
A50: O2328 OTC 電子零組件 | B50: 0 | C50: 0 | D50: 0 | E50: 0 | F50: 0 | G50: 0
A51: O2329 OTC 電子通路業 | B51: 0 | C51: 0 | D51: 0 | E51: 0 | F51: 0 | G51: 0
A52: O2330 OTC 資訊服務業 | B52: 0 | C52: 0 | D52: 0 | E52: 0 | F52: 0 | G52: 0
A53: O2331 OTC 其他電子業 | B53: 0 | C53: 0 | D53: 0 | E53: 0 | F53: 0 | G53: 0
A54: OTC25 OTC 營造 | B54: 0 | C54: 0 | D54: 0 | E54: 0 | F54: 0 | G54: 0
A55: OTC26 OTC 運輸類 | B55: 0 | C55: 0 | D55: 0 | E55: 0 | F55: 0 | G55: 0
A56: OTC27 OTC 觀光類 | B56: 0 | C56: 0 | D56: 0 | E56: 0 | F56: 0 | G56: 0
A57: OTC28 OTC 金融類 | B57: 0 | C57: 0 | D57: 0 | E57: 0 | F57: 0 | G57: 0
A58: OTC29 OTC 百貨類 | B58: 0 | C58: 0 | D58: 0 | E58: 0 | F58: 0 | G58: 0
A59: OTC89 OTC 其它類 | B59: 0 | C59: 0 | D59: 0 | E59: 0 | F59: 0 | G59: 0
A60: OTC97 OTC 油電燃氣業 | B60: 0 | C60: 0 | D60: 0 | E60: 0 | F60: 0 | G60: 0
A61: OTC30 OTC 證券類 | G61: 0
A62: F0001 美國 | G62: 0
A63: F0002 日本 | G63: 0
A64: F0003 歐洲 | G64: 0
A65: F0004 紐澳 | G65: 0
A66: F0005 東南亞 | G66: 0
A67: F0006 海外其他 | G67: =B67-F67 -> 0
A68: F0007 北美 | G68: 0
A69: F0008 已開發歐洲 | G69: 0
A70: F0009 亞不含日本 | G70: 0
A71: F0010 新興歐洲 | G71: 0
A72: F0011 新興拉美 | G72: 0
A73: ZAA 買斷債券 | G73: 0
A74: ZBB 附條件債券 | G74: 0
A75: ZCC 存放金融機 | G75: 0
A76: ZDD 短期票券 | G76: 0
A77: ZEE 其他投資 | G77: 0
A79: * 實為較4週前比較，持股率的增減
A81: Data Field | B81: 2017-09-08 | C81: 2017-09-01 | D81: 2017-08-25 | E81: 2017-08-18 | F81: 2017-08-11 | G81: 較上月比*
A82: TT99F 國外合計 | B82: 0 | C82: 0 | D82: 0 | E82: 0 | F82: 0 | G82: =B82-F82 -> 0
A83: TT99L 國內合計 | B83: 97.18 | C83: 96.72 | D83: 96.75 | E83: 96.74 | F83: 96.75 | G83: =B83-F83 -> 0.43
A84: 現金部位估計 | B84: =100-B82-B83 -> 2.82 | C84: =100-C82-C83 -> 3.28 | D84: =100-D82-D83 -> 3.25 | E84: =100-E82-E83 -> 3.26 | F84: =100-F82-F83 -> 3.25 | G84: =B84-F84 -> -0.43

Sheet 圖型
A1: 0050 元大台灣50 | G1: Y9999 加權指數 | M1: =MATCH($L$2,M3:M705,0) -> 250 | N1: 近一月報酬率 | Q1: 近三月報酬率 | T1: 近一年報酬率
A2: 年月日 | B2: 淨值(元) | C2: 近一個月變動率% | D2: 近三個月變動率% | E2: 近一年變動率% | G2: 年月日 | H2: 淨值(元) | I2: 近一個月變動率% | J2: 近三個月變動率% | K2: 近一年變動率% | L2: =MIN(M3:M705) -> 2016-09-06 | N2: =MID($A$1,FIND(" ",$A$1)+1,12) -> 元大台灣50 | O2: 加權指數 | Q2: =MID($A$1,FIND(" ",$A$1)+1,12) -> 元大台灣50 | R2: 加權指數 | T2: =MID($A$1,FIND(" ",$A$1)+1,12) -> 元大台灣50 | U2: 加權指數
A3: 2017-09-12 | B3: 83.17 | C3: 2.086658 | D3: 9.151521 | E3: 24.677568 | G3: 2017-09-12 | H3: 10610.35 | I3: 2.718216 | J3: 4.949476 | K3: 18.590353 | L3: =OFFSET(圖型!M2,圖型!$M$1,2,) -> 0.986899 | M3: =IF($A3="","",$A3) -> 2017-09-12 | N3: =IF(ISERROR(VLOOKUP($M3,XX_TEJ6,3,FALSE)=TRUE),"",VLOOKUP($M3,XX_TEJ6,3,FALSE)) -> 2.086658 | O3: =IF(ISERROR(VLOOKUP($M3,XX_TEJ7,3,FALSE)=TRUE),"",VLOOKUP($M3,XX_TEJ7,3,FALSE)) -> 2.718216 | Q3: =IF(ISERROR(VLOOKUP($M3,XX_TEJ6,4,FALSE)=TRUE),"",VLOOKUP($M3,XX_TEJ6,4,FALSE)) -> 9.151521 | R3: =IF(ISERROR(VLOOKUP($M3,XX_TEJ7,4,FALSE)=TRUE),"",VLOOKUP($M3,XX_TEJ7,4,FALSE)) -> 4.949476 | T3: =IF(ISERROR(VLOOKUP($M3,XX_TEJ6,5,FALSE)=TRUE),"",VLOOKUP($M3,XX_TEJ6,5,FALSE)) -> 24.677568 | U3: =IF(ISERROR(VLOOKUP($M3,XX_TEJ7,5,FALSE)=TRUE),"",VLOOKUP($M3,XX_TEJ7,5,FALSE)) -> 18.590353
A4: 2017-09-11 | B4: 82.8 | C4: 1.632503 | D4: 7.311452 | E4: 22.486674 | G4: 2017-09-11 | H4: 10572.16 | I4: 2.3485 | J4: 3.652184 | K4: 16.771836 | L4: =OFFSET(圖型!P2,圖型!$P$1,2,) | M4: =IF($A4="","",$A4) -> 2017-09-11 | N4: 1.632503 | O4: 2.3485 | Q4: 7.311452 | R4: 3.652184 | T4: 22.486674 | U4: 16.771836
A5: 2017-09-08 | B5: 83.18 | C5: -0.024038 | D5: 7.527595 | E5: 19.854522 | G5: 2017-09-08 | H5: 10609.95 | I5: 0.387739 | J5: 3.756877 | K5: 14.542546 | L5: =OFFSET(圖型!S2,圖型!$S$1,2,) | M5: 2017-09-08 | N5: -0.024038 | O5: 0.387739 | Q5: 7.527595 | R5: 3.756877 | T5: 19.854522 | U5: 14.542546
A6: 2017-09-07 | B6: 82.65 | C6: -0.541516 | D6: 7.007043 | E6: 18.80895 | G6: 2017-09-07 | H6: 10538.51 | I6: -0.386318 | J6: 3.217633 | K6: 13.818234 | M6: 2017-09-07 | N6: -0.541516 | O6: -0.386318 | Q6: 7.007043 | R6: 3.217633 | T6: 18.80895 | U6: 13.818234
A7: 2017-09-06 | B7: 82.64 | C7: 0.218288 | D7: 7.200515 | E7: 20.132729 | G7: 2017-09-06 | H7: 10547.86 | I7: 0.393088 | J7: 3.347776 | K7: 14.877285 | M7: 2017-09-06 | N7: 0.218288 | O7: 0.393088 | Q7: 7.200515 | R7: 3.347776 | T7: 20.132729 | U7: 14.877285
A8: 2017-09-05 | B8: 83.21 | C8: 0.909532 | D8: 7.580165 | E8: 22.269765 | G8: 2017-09-05 | H8: 10617.84 | I8: 1.059148 | J8: 3.823273 | K8: 16.80625 | M8: 2017-09-05 | N8: 0.909532 | O8: 1.059148 | Q8: 7.580165 | R8: 3.823273 | T8: 22.269765 | U8: 16.80625
A9: 2017-09-04 | B9: 82.94 | C9: 0.5821 | D9: 8.174023 | E9: 23.472223 | G9: 2017-09-04 | H9: 10569.87 | I9: 0.602576 | J9: 4.0531 | K9: 17.605688 | M9: 2017-09-04 | N9: 0.5821 | O9: 0.602576 | Q9: 8.174023 | R9: 4.0531 | T9: 23.472223 | U9: 17.605688
A10: 2017-09-01 | B10: 83.08 | C10: 1.664219 | D10: 9.090187 | E10: 24.200006 | G10: 2017-09-01 | H10: 10594.82 | I10: 1.5093 | J10: 5.030027 | K10: 17.705182 | M10: 2017-09-01 | N10: 1.664219 | O10: 1.5093 | Q10: 9.090187 | R10: 5.030027 | T10: 24.200006 | U10: 17.705182
A11: 2017-08-31 | B11: 83.06 | C11: 1.639745 | D11: 9.83611 | E11: 23.082928 | G11: 2017-08-31 | H11: 10585.78 | I11: 1.519564 | J11: 5.428495 | K11: 16.726818 | M11: 2017-08-31 | N11: 1.639745 | O11: 1.519564 | Q11: 9.83611 | R11: 5.428495 | T11: 23.082928 | U11: 16.726818
A12: 2017-08-30 | B12: 83.05 | C12: 1.70218 | D12: 8.697009 | E12: 22.435459 | G12: 2017-08-30 | H12: 10569.4 | I12: 1.4041 | J12: 4.627324 | K12: 16.012627 | M12: 2017-08-30 | N12: 1.70218 | O12: 1.4041 | Q12: 8.697009 | R12: 4.627324 | T12: 22.435459 | U12: 16.012627
A13: 2017-08-29 | B13: 82.45 | C13: 0.967426 | D13: 7.911721 | E13: 21.342989 | G13: 2017-08-29 | H13: 10496.57 | I13: 0.70536 | J13: 3.906375 | K13: 15.218157 | M13: 2017-08-29 | N13: 0.967426 | O13: 0.70536 | Q13: 7.911721 | R13: 3.906375 | T13: 21.342989 | U13: 15.218157
A14: 2017-08-28 | B14: 82.66 | C14: 1.22459 | D14: 8.186572 | E14: 21.375213 | G14: 2017-08-28 | H14: 10525.98 | I14: 0.987523 | J14: 4.197506 | K14: 15.268317 | M14: 2017-08-28 | N14: 1.22459 | O14: 0.987523 | Q14: 8.186572 | R14: 4.197506 | T14: 21.375213 | U14: 15.268317
A15: 2017-08-25 | B15: 82.77 | C15: 1.052554 | D15: 8.288384 | E15: 21.675178 | G15: 2017-08-25 | H15: 10515.51 | I15: 0.500423 | J15: 4.026516 | K15: 15.358945 | M15: 2017-08-25 | N15: 1.052554 | O15: 0.500423 | Q15: 8.288384 | R15: 4.026516 | T15: 21.675178 | U15: 15.358945
A16: 2017-08-24 | B16: 82.65 | C16: 0.918264 | D16: 8.965342 | E16: 23.164821 | G16: 2017-08-24 | H16: 10488.96 | I16: 0.264595 | J16: 4.425741 | K16: 16.319374 | M16: 2017-08-24 | N16: 0.918264 | O16: 0.264595 | Q16: 8.965342 | R16: 4.425741 | T16: 23.164821 | U16: 16.319374
A17: 2017-08-23 | B17: 81.97 | C17: 0.440599 | D17: 8.366309 | E17: 21.940274 | G17: 2017-08-23 | H17: 10406.81 | I17: -0.286393 | J17: 3.986575 | K17: 15.235197 | M17: 2017-08-23 | N17: 0.440599 | O17: -0.286393 | Q17: 8.366309 | R17: 3.986575 | T17: 21.940274 | U17: 15.235197
A18: 2017-08-22 | B18: 81.81 | C18: 0.244546 | D18: 8.325175 | E18: 22.407775 | G18: 2017-08-22 | H18: 10392.07 | I18: -0.427626 | J18: 3.949182 | K18: 15.70129 | M18: 2017-08-22 | N18: 0.244546 | O18: -0.427626 | Q18: 8.325175 | R18: 3.949182 | T18: 22.407775 | U18: 15.70129
A19: 2017-08-21 | B19: 81.18 | C19: -0.527414 | D19: 8.058447 | E19: 20.81728 | G19: 2017-08-21 | H19: 10326.39 | I19: -1.056943 | J19: 3.807644 | K19: 14.302428 | M19: 2017-08-21 | N19: -0.527414 | O19: -1.056943 | Q19: 8.058447 | R19: 3.807644 | T19: 20.81728 | U19: 14.302428
A20: 2017-08-18 | B20: 81.26 | C20: -0.862984 | D20: 7.823406 | E20: 19.728186 | G20: 2017-08-18 | H20: 10321.33 | I20: -1.525866 | J20: 3.529583 | K20: 13.141463 | M20: 2017-08-18 | N20: -0.862984 | O20: -1.525866 | Q20: 7.823406 | R20: 3.529583 | T20: 19.728186 | U20: 13.141463
A21: 2017-08-17 | B21: 81.73 | C21: 0.146519 | D21: 7.935839 | E21: 20.506673 | G21: 2017-08-17 | H21: 10369.37 | I21: -0.843124 | J21: 3.552144 | K21: 13.727914 | M21: 2017-08-17 | N21: 0.146519 | O21: -0.843124 | Q21: 7.935839 | R21: 3.552144 | T21: 20.506673 | U21: 13.727914
A22: 2017-08-16 | B22: 81.17 | C22: -0.333821 | D22: 7.014117 | E22: 19.732281 | G22: 2017-08-16 | H22: 10290.39 | I22: -1.469948 | J22: 2.580873 | K22: 12.952617 | M22: 2017-08-16 | N22: -0.333821 | O22: -1.469948 | Q22: 7.014117 | R22: 2.580873 | T22: 19.732281 | U22: 12.952617
A23: 2017-08-15 | B23: 81.43 | C23: -0.014575 | D23: 7.244748 | E23: 19.314575 | G23: 2017-08-15 | H23: 10311.16 | I23: -1.271076 | J23: 2.733336 | K23: 12.708627 | M23: 2017-08-15 | N23: -0.014575 | O23: -1.271076 | Q23: 7.244748 | R23: 2.733336 | T23: 19.314575 | U23: 12.708627
A24: 2017-08-14 | B24: 80.77 | C24: -0.824969 | D24: 6.849909 | E24: 18.61687 | G24: 2017-08-14 | H24: 10225.28 | I24: -2.093373 | J24: 2.387747 | K24: 11.746931 | M24: 2017-08-14 | N24: -0.824969 | O24: -2.093373 | Q24: 6.849909 | R24: 2.387747 | T24: 18.61687 | U24: 11.746931
A25: 2017-08-11 | B25: 81.47 | C25: 0.63487 | D25: 7.28342 | E25: 19.764126 | G25: 2017-08-11 | H25: 10329.57 | I25: -0.825687 | J25: 3.280414 | K25: 13.1161 | M25: 2017-08-11 | N25: 0.63487 | O25: -0.825687 | Q25: 7.28342 | R25: 3.280414 | T25: 19.764126 | U25: 13.1161
A26: 2017-08-10 | B26: 81.57 | C26: 2.669697 | D26: 7.9507 | E26: 18.945744 | G26: 2017-08-10 | H26: 10329.74 | I26: 0.387078 | J26: 3.625686 | K26: 12.274657 | M26: 2017-08-10 | N26: 2.669697 | O26: 0.387078 | Q26: 7.9507 | R26: 3.625686 | T26: 18.945744 | U26: 12.274657
A27: 2017-08-09 | B27: 82.35 | C27: 3.768009 | D27: 9.327254 | E27: 20.679724 | G27: 2017-08-09 | H27: 10470.38 | I27: 1.681323 | J27: 5.5963 | K27: 14.366887 | M27: 2017-08-09 | N27: 3.768009 | O27: 1.681323 | Q27: 9.327254 | R27: 5.5963 | T27: 20.679724 | U27: 14.366887
A28: 2017-08-08 | B28: 83.2 | C28: 4.839082 | D28: 10.67423 | E28: 22.202892 | G28: 2017-08-08 | H28: 10568.97 | I28: 2.638763 | J28: 6.357091 | K28: 15.504587 | M28: 2017-08-08 | N28: 4.839082 | O28: 2.638763 | Q28: 10.67423 | R28: 6.357091 | T28: 22.202892 | U28: 15.504587
A29: 2017-08-07 | B29: 83.1 | C29: 4.713073 | D29: 11.467408 | E29: 23.0892 | G29: 2017-08-07 | H29: 10579.38 | I29: 2.739858 | J29: 6.863072 | K29: 16.357681 | M29: 2017-08-07 | N29: 4.713073 | O29: 2.739858 | Q29: 11.467408 | R29: 6.863072 | T29: 23.0892 | U29: 16.357681
A30: 2017-08-04 | B30: 82.46 | C30: 3.84175 | D30: 9.892782 | E30: 23.344582 | G30: 2017-08-04 | H30: 10506.56 | I30: 1.534435 | J30: 5.406696 | K30: 16.419918 | M30: 2017-08-04 | N30: 3.84175 | O30: 1.534435 | Q30: 9.892782 | R30: 5.406696 | T30: 23.344582 | U30: 16.419918
A31: 2017-08-03 | B31: 82.25 | C31: 2.718001 | D31: 9.627405 | E31: 23.513636 | G31: 2017-08-03 | H31: 10469.88 | I31: 0.548268 | J31: 5.168588 | K31: 16.309901 | M31: 2017-08-03 | N31: 2.718001 | O31: 0.548268 | Q31: 9.627405 | R31: 5.168588 | T31: 23.513636 | U31: 16.309901
A32: 2017-08-02 | B32: 82.71 | C32: 3.638962 | D32: 10.664633 | E32: 22.970237 | G32: 2017-08-02 | H32: 10519.27 | I32: 1.194797 | J32: 5.814146 | K32: 15.994579 | M32: 2017-08-02 | N32: 3.638962 | O32: 1.194797 | Q32: 10.664633 | R32: 5.814146 | T32: 22.970237 | U32: 15.994579
A33: 2017-08-01 | B33: 81.72 | C33: 2.398452 | D33: 10.27631 | E33: 21.358527 | G33: 2017-08-01 | H33: 10437.29 | I33: 0.406154 | J33: 5.726195 | K33: 14.93914 | M33: 2017-08-01 | N33: 2.398452 | O33: 0.406154 | Q33: 10.27631 | R33: 5.726195 | T33: 21.358527 | U33: 14.93914
A34: 2017-07-31 | B34: 81.72 | C34: 2.398452 | D34: 10.27631 | E34: 23.183601 | G34: 2017-07-31 | H34: 10427.33 | I34: 0.310339 | J34: 5.625304 | K34: 16.060264 | M34: 2017-07-31 | N34: 2.398452 | O34: 0.310339 | Q34: 10.27631 | R34: 5.625304 | T34: 23.183601 | U34: 16.060264
A35: 2017-07-28 | B35: 82.36 | C35: 2.374145 | D35: 10.195344 | E35: 21.409135 | G35: 2017-07-28 | H35: 10423.05 | I35: 0.312784 | J35: 5.581949 | K35: 14.833793 | M35: 2017-07-28 | N35: 2.374145 | O35: 0.312784 | Q35: 10.195344 | R35: 5.581949 | T35: 21.409135 | U35: 14.833793
A36: 2017-07-27 | B36: 83.08 | C36: 2.189422 | D36: 11.382223 | E36: 22.859752 | G36: 2017-07-27 | H36: 10508.37 | I36: -0.035103 | J36: 6.56906 | K36: 15.943041 | M36: 2017-07-27 | N36: 2.189422 | O36: -0.035103 | Q36: 11.382223 | R36: 6.56906 | T36: 22.859752 | U36: 15.943041
A37: 2017-07-26 | B37: 82.21 | C37: 0.772248 | D37: 10.289777 | E37: 22.253632 | G37: 2017-07-26 | H37: 10419.11 | I37: -0.902134 | J37: 5.708546 | K37: 15.449889 | M37: 2017-07-26 | N37: 0.772248 | O37: -0.902134 | Q37: 10.289777 | R37: 5.708546 | T37: 22.253632 | U37: 15.449889
A38: 2017-07-25 | B38: 82.61 | C38: 3.690222 | D38: 10.707585 | E38: 23.539922 | G38: 2017-07-25 | H38: 10463.15 | I38: 0.8234 | J38: 6.31435 | K38: 16.364924 | M38: 2017-07-25 | N38: 3.690222 | O38: 0.8234 | Q38: 10.707585 | R38: 6.31435 | T38: 23.539922 | U38: 16.364924
A39: 2017-07-24 | B39: 82.6 | C39: 3.67767 | D39: 12.091193 | E39: 23.489323 | G39: 2017-07-24 | H39: 10461.28 | I39: 0.805381 | J39: 7.649041 | K39: 16.066987 | M39: 2017-07-24 | N39: 3.67767 | O39: 0.805381 | Q39: 12.091193 | R39: 7.649041 | T39: 23.489323 | U39: 16.066987
A40: 2017-07-21 | B40: 82.31 | C40: 3.769541 | D40: 11.849436 | E40: 22.297033 | G40: 2017-07-21 | H40: 10436.7 | I40: 0.840409 | J40: 7.402075 | K40: 15.239119 | M40: 2017-07-21 | N40: 3.769541 | O40: 0.840409 | Q40: 11.849436 | R40: 7.402075 | T40: 22.297033 | U40: 15.239119
A41: 2017-07-20 | B41: 82.92 | C41: 4.420098 | D41: 13.822924 | E41: 24.218643 | G41: 2017-07-20 | H41: 10499.36 | I41: 1.694035 | J41: 8.997175 | K41: 16.560091 | M41: 2017-07-20 | N41: 4.420098 | O41: 1.694035 | Q41: 13.822924 | R41: 8.997175 | T41: 24.218643 | U41: 16.560091
A42: 2017-07-19 | B42: 82.96 | C42: 5.789339 | D42: 13.909103 | E42: 23.741879 | G42: 2017-07-19 | H42: 10506.1 | I42: 2.492537 | J42: 8.985118 | K42: 16.283909 | M42: 2017-07-19 | N42: 5.789339 | O42: 2.492537 | Q42: 13.909103 | R42: 8.985118 | T42: 23.741879 | U42: 16.283909
A43: 2017-07-18 | B43: 82.67 | C43: 6.588448 | D43: 12.277604 | E43: 23.862036 | G43: 2017-07-18 | H43: 10481.26 | I43: 3.195221 | J43: 7.538044 | K43: 16.352305 | M43: 2017-07-18 | N43: 6.588448 | O43: 3.195221 | Q43: 12.277604 | R43: 7.538044 | T43: 23.862036 | U43: 16.352305
A44: 2017-07-17 | B44: 82.31 | C44: 6.124291 | D44: 11.834239 | E44: 24.293137 | G44: 2017-07-17 | H44: 10457.54 | I44: 2.961682 | J44: 7.627722 | K44: 16.845981 | M44: 2017-07-17 | N44: 6.124291 | O44: 2.961682 | Q44: 11.834239 | R44: 7.627722 | T44: 24.293137 | U44: 16.845981
A45: 2017-07-14 | B45: 82.14 | C45: 6.911363 | D45: 11.421595 | E45: 25.48105 | G45: 2017-07-14 | H45: 10443.91 | I45: 3.687778 | J45: 7.304892 | K45: 17.792533 | M45: 2017-07-14 | N45: 6.911363 | O45: 3.687778 | Q45: 11.421595 | R45: 7.304892 | T45: 25.48105 | U45: 17.792533
A46: 2017-07-13 | B46: 82.39 | C46: 6.944444 | D46: 10.843536 | E46: 26.048793 | G46: 2017-07-13 | H46: 10460.15 | I46: 3.277993 | J46: 6.338216 | K46: 18.090373 | M46: 2017-07-13 | N46: 6.944444 | O46: 3.277993 | Q46: 10.843536 | R46: 6.338216 | T46: 26.048793 | U46: 18.090373
A47: 2017-07-12 | B47: 81.66 | C47: 6.258946 | D47: 10.08358 | E47: 25.079702 | G47: 2017-07-12 | H47: 10420.68 | I47: 3.073405 | J47: 6.141981 | K47: 17.86153 | M47: 2017-07-12 | N47: 6.258946 | O47: 3.073405 | Q47: 10.08358 | R47: 6.141981 | T47: 25.079702 | U47: 17.86153
A48: 2017-07-11 | B48: 81.65 | C48: 4.921614 | D48: 10.099784 | E48: 26.164713 | G48: 2017-07-11 | H48: 10415.57 | I48: 2.116935 | J48: 5.93089 | K48: 18.541007 | M48: 2017-07-11 | N48: 4.921614 | O48: 2.116935 | Q48: 10.099784 | R48: 5.93089 | T48: 26.164713 | U48: 18.541007
A49: 2017-07-10 | B49: 80.13 | C49: 2.968389 | D49: 7.875606 | E49: 26.533109 | G49: 2017-07-10 | H49: 10289.91 | I49: 0.884932 | J49: 4.122118 | K49: 19.083638 | M49: 2017-07-10 | N49: 2.968389 | O49: 0.884932 | Q49: 7.875606 | R49: 4.122118 | T49: 26.533109 | U49: 19.083638
A50: 2017-07-07 | B50: 80.04 | C50: 2.747112 | D50: 7.856084 | E50: 26.39099 | G50: 2017-07-07 | H50: 10297.25 | I50: 0.854653 | J50: 4.293164 | K50: 19.168583 | M50: 2017-07-07 | N50: 2.747112 | O50: 0.854653 | Q50: 7.856084 | R50: 4.293164 | T50: 26.39099 | U50: 19.168583
A51: 2017-07-06 | B51: 80.64 | C51: 3.717042 | D51: 8.241611 | E51: 28.691653 | G51: 2017-07-06 | H51: 10368.2 | I51: 1.58747 | J51: 4.752571 | K51: 20.901379 | M51: 2017-07-06 | N51: 3.717042 | O51: 1.58747 | Q51: 8.241611 | R51: 4.752571 | T51: 28.691653 | U51: 20.901379
A52: 2017-07-05 | B52: 80.81 | C52: 3.589283 | D52: 7.732302 | E52: 26.699417 | G52: 2017-07-05 | H52: 10404.79 | I52: 1.740029 | J52: 4.576219 | K52: 19.374787 | M52: 2017-07-05 | N52: 3.589283 | O52: 1.740029 | Q52: 7.732302 | R52: 4.576219 | T52: 26.699417 | U52: 19.374787
A53: 2017-07-04 | B53: 80.09 | C53: 3.569119 | D53: 8.862308 | E53: 24.646407 | G53: 2017-07-04 | H53: 10347.78 | I53: 1.866777 | J53: 5.465616 | K53: 18.117522 | M53: 2017-07-04 | N53: 3.569119 | O53: 1.866777 | Q53: 8.862308 | R53: 5.465616 | T53: 24.646407 | U53: 18.117522
A54: 2017-07-03 | B54: 80.76 | C54: 4.435536 | D54: 9.773005 | E54: 26.200927 | G54: 2017-07-03 | H54: 10412.79 | I54: 2.506756 | J54: 6.128204 | K54: 19.16347 | M54: 2017-07-03 | N54: 4.435536 | O54: 2.506756 | Q54: 9.773005 | R54: 6.128204 | T54: 26.200927 | U54: 19.16347
A55: 2017-06-30 | B55: 80.49 | C55: 5.532975 | D55: 9.406008 | E55: 27.140335 | G55: 2017-06-30 | H55: 10395.07 | I55: 3.529129 | J55: 5.9476 | K55: 19.944315 | M55: 2017-06-30 | N55: 5.532975 | O55: 3.529129 | Q55: 9.406008 | R55: 5.9476 | T55: 27.140335 | U55: 19.944315
A56: 2017-06-29 | B56: 80.86 | C56: 4.931222 | D56: 9.078646 | E56: 29.341548 | G56: 2017-06-29 | H56: 10421.65 | I56: 3.164736 | J56: 5.736462 | K56: 21.371655 | M56: 2017-06-29 | N56: 4.931222 | O56: 3.164736 | Q56: 9.078646 | R56: 5.736462 | T56: 29.341548 | U56: 21.371655
A57: 2017-06-28 | B57: 80.45 | C57: 4.399169 | D57: 7.957595 | E57: 30.152399 | G57: 2017-06-28 | H57: 10390.55 | I57: 2.856874 | J57: 5.205312 | K57: 22.162575 | M57: 2017-06-28 | N57: 4.399169 | O57: 2.856874 | Q57: 7.957595 | R57: 5.205312 | T57: 30.152399 | U57: 22.162575
A58: 2017-06-27 | B58: 81.3 | C58: 5.502206 | D58: 9.288883 | E58: 32.291748 | G58: 2017-06-27 | H58: 10512.06 | I58: 4.059711 | J58: 6.432164 | K58: 24.272627 | M58: 2017-06-27 | N58: 5.502206 | O58: 4.059711 | Q58: 9.288883 | R58: 6.432164 | T58: 32.291748 | U58: 24.272627
A59: 2017-06-26 | B59: 81.58 | C59: 5.865559 | D59: 9.753801 | E59: 33.565369 | G59: 2017-06-26 | H59: 10513.96 | I59: 4.078519 | J59: 6.169658 | K59: 24.029402 | M59: 2017-06-26 | N59: 5.865559 | O59: 4.078519 | Q59: 9.753801 | R59: 6.169658 | T59: 33.565369 | U59: 24.029402
A60: 2017-06-23 | B60: 79.67 | C60: 4.430463 | D60: 6.824886 | E60: 27.339769 | G60: 2017-06-23 | H60: 10377.7 | I60: 3.695703 | J60: 4.500772 | K60: 19.604503 | M60: 2017-06-23 | N60: 4.430463 | O60: 3.695703 | Q60: 6.824886 | R60: 4.500772 | T60: 27.339769 | U60: 19.604503
A61: 2017-06-22 | B61: 79.79 | C61: 4.752527 | D61: 7.000134 | E61: 26.944138 | G61: 2017-06-22 | H61: 10399.06 | I61: 4.019101 | J61: 4.801132 | K61: 19.306583 | M61: 2017-06-22 | N61: 4.752527 | O61: 4.019101 | Q61: 7.000134 | R61: 4.801132 | T61: 26.944138 | U61: 19.306583
A62: 2017-06-21 | B62: 79.32 | C62: 4.685232 | D62: 5.68954 | E62: 26.643607 | G62: 2017-06-21 | H62: 10349.72 | I62: 4.042173 | J62: 3.782706 | K62: 19.169819 | M62: 2017-06-21 | N62: 4.685232 | O62: 4.042173 | Q62: 5.68954 | R62: 3.782706 | T62: 26.643607 | U62: 19.169819
A63: 2017-06-20 | B63: 79.41 | C63: 4.804012 | D63: 6.791286 | E63: 27.712183 | G63: 2017-06-20 | H63: 10324.46 | I63: 3.788243 | J63: 4.151026 | K63: 19.691117 | M63: 2017-06-20 | N63: 4.804012 | O63: 3.788243 | Q63: 6.791286 | R63: 4.151026 | T63: 27.712183 | U63: 19.691117
A64: 2017-06-19 | B64: 78.42 | C64: 3.497426 | D64: 5.459925 | E64: 26.927706 | G64: 2017-06-19 | H64: 10250.6 | I64: 3.045754 | J64: 3.450607 | K64: 19.637072 | M64: 2017-06-19 | N64: 3.497426 | O64: 3.045754 | Q64: 5.459925 | R64: 3.450607 | T64: 26.927706 | U64: 19.637072
A65: 2017-06-16 | B65: 77.56 | C65: 1.385621 | D65: 4.995262 | E65: 26.863428 | G65: 2017-06-16 | H65: 10156.73 | I65: 1.248469 | J65: 3.241569 | K65: 19.573376 | M65: 2017-06-16 | N65: 1.385621 | O65: 1.248469 | Q65: 4.995262 | R65: 3.241569 | T65: 26.863428 | U65: 19.573376
A66: 2017-06-15 | B66: 76.97 | C66: 0.509271 | D66: 5.467251 | E66: 23.864919 | G66: 2017-06-15 | H66: 10088.35 | I66: 0.51341 | J66: 3.573192 | K66: 17.219571 | M66: 2017-06-15 | N66: 0.509271 | O66: 0.51341 | Q66: 5.467251 | R66: 3.573192 | T66: 23.864919 | U66: 17.219571
A67: 2017-06-14 | B67: 76.83 | C67: 0.773872 | D67: 5.304276 | E67: 24.179618 | G67: 2017-06-14 | H67: 10072.46 | I67: 0.85753 | J67: 3.368667 | K67: 17.44775 | M67: 2017-06-14 | N67: =IF(ISERROR(VLOOKUP($M67,XX_TEJ6,3,FALSE)=TRUE),"",VLOOKUP($M67,XX_TEJ6,3,FALSE)) -> 0.773872 | O67: =IF(ISERROR(VLOOKUP($M67,XX_TEJ7,3,FALSE)=TRUE),"",VLOOKUP($M67,XX_TEJ7,3,FALSE)) -> 0.85753 | Q67: =IF(ISERROR(VLOOKUP($M67,XX_TEJ6,4,FALSE)=TRUE),"",VLOOKUP($M67,XX_TEJ6,4,FALSE)) -> 5.304276 | R67: =IF(ISERROR(VLOOKUP($M67,XX_TEJ7,4,FALSE)=TRUE),"",VLOOKUP($M67,XX_TEJ7,4,FALSE)) -> 3.368667 | T67: =IF(ISERROR(VLOOKUP($M67,XX_TEJ6,5,FALSE)=TRUE),"",VLOOKUP($M67,XX_TEJ6,5,FALSE)) -> 24.179618 | U67: =IF(ISERROR(VLOOKUP($M67,XX_TEJ7,5,FALSE)=TRUE),"",VLOOKUP($M67,XX_TEJ7,5,FALSE)) -> 17.44775
A68: 2017-06-13 | B68: 77.04 | C68: 1.049318 | D68: 5.998899 | E68: 25.182932 | G68: 2017-06-13 | H68: 10128.15 | I68: 1.415165 | J68: 4.442558 | K68: 18.649121 | M68: =IF($A68="","",$A68) -> 2017-06-13 | N68: 1.049318 | O68: 1.415165 | Q68: 5.998899 | R68: 4.442558 | T68: 25.182932 | U68: 18.649121
A69: 2017-06-12 | B69: 76.85 | C69: 0.800105 | D69: 6.691656 | E69: 21.985719 | G69: 2017-06-12 | H69: 10109.96 | I69: 1.233025 | J69: 5.007016 | K69: 16.000037 | M69: 2017-06-12 | N69: 0.800105 | O69: 1.233025 | Q69: 6.691656 | R69: 5.007016 | T69: 21.985719 | U69: 16.000037
A70: 2017-06-09 | B70: 77.82 | C70: 2.435172 | D70: 7.828738 | E70: 23.525421 | G70: 2017-06-09 | H70: 10199.65 | I70: 2.865923 | J70: 5.601634 | K70: 17.029125 | M70: 2017-06-09 | N70: 2.435172 | O70: 2.865923 | Q70: 7.828738 | R70: 5.601634 | T70: 23.525421 | U70: 17.029125
A71: 2017-06-08 | B71: 78.02 | C71: 2.901609 | D71: 6.935307 | E71: 23.842886 | G71: 2017-06-08 | H71: 10225.78 | I71: 2.90352 | J71: 4.842697 | K71: 17.328937 | M71: 2017-06-08 | N71: 2.901609 | O71: 2.90352 | Q71: 6.935307 | R71: 4.842697 | T71: 23.842886 | U71: 17.328937
A72: 2017-06-07 | B72: 77.9 | C72: 3.604203 | D72: 7.0349 | E72: 24.453116 | G72: 2017-06-07 | H72: 10209.99 | I72: 3.131837 | J72: 4.846135 | K72: 17.627968 | M72: 2017-06-07 | N72: 3.604203 | O72: 3.131837 | Q72: 7.0349 | R72: 4.846135 | T72: 24.453116 | U72: 17.627968
A73: 2017-06-06 | B73: 77.75 | C73: 3.404708 | D73: 7.493433 | E73: 25.588247 | G73: 2017-06-06 | H73: 10206.18 | I73: 3.093352 | J73: 5.407105 | K73: 18.716406 | M73: 2017-06-06 | N73: 3.404708 | O73: 3.093352 | Q73: 7.493433 | R73: 5.407105 | T73: 25.588247 | U73: 18.716406
A74: 2017-06-05 | B74: 78.01 | C74: 3.750499 | D74: 8.151948 | E74: 26.343035 | G74: 2017-06-05 | H74: 10226.84 | I74: 3.30204 | J74: 5.997278 | K74: 19.033425 | M74: 2017-06-05 | N74: 3.750499 | O74: 3.30204 | Q74: 8.151948 | R74: 5.997278 | T74: 26.343035 | U74: 19.033425
A75: 2017-06-03 | B75: 77.33 | C75: 2.193736 | D75: 7.209206 | E75: 25.104848 | G75: 2017-06-03 | H75: 10158.15 | I75: 2.037301 | J75: 5.285333 | K75: 18.291885 | M75: 2017-06-03 | N75: 2.193736 | O75: 2.037301 | Q75: 7.209206 | R75: 5.285333 | T75: 25.104848 | U75: 18.291885
A76: 2017-06-02 | B76: 77.35 | C76: 2.613425 | D76: 6.484031 | E76: 26.002797 | G76: 2017-06-02 | H76: 10152.53 | I76: 2.125081 | J76: 4.753813 | K76: 18.659494 | M76: 2017-06-02 | N76: 2.613425 | O76: 2.125081 | Q76: 6.484031 | R76: 4.753813 | T76: 26.002797 | U76: 18.659494
A77: 2017-06-01 | B77: 76.81 | C77: 2.769601 | D77: 6.032579 | E77: 24.535799 | G77: 2017-06-01 | H77: 10087.42 | I77: 2.182131 | J77: 4.26511 | K77: 17.334329 | M77: 2017-06-01 | N77: 2.769601 | O77: 2.182131 | Q77: 6.032579 | R77: 4.26511 | T77: 24.535799 | U77: 17.334329
A78: 2017-05-31 | B78: 76.27 | C78: 2.047097 | D78: 4.193989 | E78: 24.773096 | G78: 2017-05-31 | H78: 10040.72 | I78: 1.709076 | J78: 2.97678 | K78: 17.633579 | M78: 2017-05-31 | N78: 2.047097 | O78: 1.709076 | Q78: 4.193989 | R78: 2.97678 | T78: 24.773096 | U78: 17.633579
A79: 2017-05-26 | B79: 77.06 | C79: 3.380735 | D79: 5.273224 | E79: 28.499968 | G79: 2017-05-26 | H79: 10101.95 | I79: 2.490755 | J79: 3.604749 | K79: 20.345551 | M79: 2017-05-26 | N79: 3.380735 | O79: 2.490755 | Q79: 5.273224 | R79: 3.604749 | T79: 28.499968 | U79: 20.345551
A80: 2017-05-25 | B80: 77.09 | C80: 3.310105 | D80: 5.314208 | E80: 28.42599 | G80: 2017-05-25 | H80: 10108.49 | I80: 2.710708 | J80: 3.671823 | K80: 20.39363 | M80: 2017-05-25 | N80: 3.310105 | O80: 2.710708 | Q80: 5.314208 | R80: 3.671823 | T80: 28.42599 | U80: 20.39363
A81: 2017-05-24 | B81: 76.5 | C81: 3.813272 | D81: 4.508197 | E81: 29.272025 | G81: 2017-05-24 | H81: 10044.42 | I81: 3.359453 | J81: 3.014726 | K81: 21.007486 | M81: 2017-05-24 | N81: 3.813272 | O81: 3.359453 | Q81: 4.508197 | R81: 3.014726 | T81: 29.272025 | U81: 21.007486
A82: 2017-05-23 | B82: 76.29 | C82: 3.668977 | D82: 4.022362 | E82: 27.853797 | G82: 2017-05-23 | H82: 10007.84 | I82: 2.988759 | J82: 2.441626 | K82: 19.934232 | M82: 2017-05-23 | N82: 3.668977 | O82: 2.988759 | Q82: 4.022362 | R82: 2.441626 | T82: 27.853797 | U82: 19.934232
A83: 2017-05-22 | B83: 76.17 | C83: 3.505911 | D83: 3.787982 | E83: 31.546097 | G83: 2017-05-22 | H83: 9997.26 | I83: 2.879883 | J83: 2.234226 | K83: 22.948473 | M83: 2017-05-22 | N83: 3.505911 | O83: 2.879883 | Q83: 3.787982 | R83: 2.234226 | T83: 31.546097 | U83: 22.948473
A84: 2017-05-19 | B84: 75.77 | C84: 4.036798 | D84: 3.116494 | E84: 31.601034 | G84: 2017-05-19 | H84: 9947.62 | I84: 3.191721 | J84: 1.714738 | K84: 22.871104 | M84: 2017-05-19 | N84: 4.036798 | O84: 3.191721 | Q84: 3.116494 | R84: 1.714738 | T84: 31.601034 | U84: 22.871104
A85: 2017-05-18 | B85: 76.01 | C85: 3.232378 | D85: 3.443114 | E85: 30.985973 | G85: 2017-05-18 | H85: 9969.45 | I85: 2.286858 | J85: 1.93795 | K85: 22.179424 | M85: 2017-05-18 | N85: 3.232378 | O85: 2.286858 | Q85: 3.443114 | R85: 1.93795 | T85: 30.985973 | U85: 22.179424
A86: 2017-05-17 | B86: 76.37 | C86: 3.763587 | D86: 3.933043 | E86: 31.935477 | G86: 2017-05-17 | H86: 10013.67 | I86: 3.059466 | J86: 2.601601 | K86: 23.010805 | M86: 2017-05-17 | N86: 3.763587 | O86: 3.059466 | Q86: 3.933043 | R86: 2.601601 | T86: 31.935477 | U86: 23.010805
A87: 2017-05-16 | B87: 76.5 | C87: 3.771026 | D87: 3.855553 | E87: 33.315852 | G87: 2017-05-16 | H87: 10031.49 | I87: 3.067524 | J87: 2.663324 | K87: 24.342927 | M87: 2017-05-16 | N87: 3.771026 | O87: 3.067524 | Q87: 3.855553 | R87: 2.663324 | T87: 33.315852 | U87: 24.342927
A88: 2017-05-15 | B88: 76.58 | C88: 3.879544 | D88: 3.626522 | E88: 33.725147 | G88: 2017-05-15 | H88: 10036.82 | I88: 3.122287 | J88: 2.419039 | K88: 24.623868 | M88: 2017-05-15 | N88: 3.879544 | O88: 3.122287 | Q88: 3.626522 | R88: 2.419039 | T88: 33.725147 | U88: 24.623868
A89: 2017-05-12 | B89: 76.24 | C89: 2.777029 | D89: 4.610318 | E89: 32.262168 | G89: 2017-05-12 | H89: 9986.82 | I89: 1.72281 | J89: 3.323439 | K89: 23.171663 | M89: 2017-05-12 | N89: 2.777029 | O89: 1.72281 | Q89: 4.610318 | R89: 3.323439 | T89: 32.262168 | U89: 23.171663
A90: 2017-05-11 | B90: 76.59 | C90: 3.276699 | D90: 5.09056 | E90: 32.625107 | G90: 2017-05-11 | H90: 10001.48 | I90: 1.719414 | J90: 3.475111 | K90: 22.93536 | M90: 2017-05-11 | N90: 3.276699 | O90: 1.719414 | Q90: 5.09056 | R90: 3.475111 | T90: 32.625107 | U90: 22.93536
A91: 2017-05-10 | B91: 76.21 | C91: 2.598277 | D91: 4.569155 | E91: 31.834902 | G91: 2017-05-10 | H91: 9968.32 | I91: 0.867995 | J91: 3.132038 | K91: 22.216351 | M91: 2017-05-10 | N91: 2.598277 | O91: 0.867995 | Q91: 4.569155 | R91: 3.132038 | T91: 31.834902 | U91: 22.216351
A92: 2017-05-09 | B92: 75.97 | C92: 2.371648 | D92: 5.309121 | E92: 31.882087 | G92: 2017-05-09 | H92: 9915.48 | I92: 0.426501 | J92: 3.392011 | K92: 21.934177 | M92: 2017-05-09 | N92: 2.371648 | O92: 0.426501 | Q92: 5.309121 | R92: 3.392011 | T92: 31.882087 | U92: 21.934177
A93: 2017-05-08 | B93: 75.82 | C93: 2.169519 | D93: 5.657748 | E93: 31.533546 | G93: 2017-05-08 | H93: 9937.25 | I93: 0.646993 | J93: 4.128573 | K93: 21.982881 | M93: 2017-05-08 | N93: 2.169519 | O93: 0.646993 | Q93: 5.657748 | R93: 4.128573 | T93: 31.533546 | U93: 21.982881
A94: 2017-05-05 | B94: 75.19 | C94: 0.239968 | D94: 5.593425 | E94: 30.027 | G94: 2017-05-05 | H94: 9899.94 | I94: -0.497915 | J94: 4.699669 | K94: 21.20456 | M94: 2017-05-05 | N94: 0.239968 | O94: -0.497915 | Q94: 5.593425 | R94: 4.699669 | T94: 30.027 | U94: 21.20456
A95: 2017-05-04 | B95: 75.68 | C95: 2.868017 | D95: 6.281558 | E95: 30.504108 | G95: 2017-05-04 | H95: 9967.64 | I95: 1.591191 | J95: 5.41565 | K95: 21.77236 | M95: 2017-05-04 | N95: 2.868017 | O95: 1.591191 | Q95: 6.281558 | R95: 5.41565 | T95: 30.504108 | U95: 21.77236
A96: 2017-05-03 | B96: 75.67 | C96: 2.854424 | D96: 6.267515 | E96: 28.793621 | G96: 2017-05-03 | H96: 9955.33 | I96: 1.465726 | J96: 5.285462 | K96: 20.028767 | M96: 2017-05-03 | N96: 2.854424 | O96: 1.465726 | Q96: 6.267515 | R96: 5.285462 | T96: 28.793621 | U96: 20.028767
A97: 2017-05-02 | B97: 75.38 | C97: 2.460242 | D97: 5.932918 | E97: 26.635955 | G97: 2017-05-02 | H97: 9941.27 | I97: 1.322425 | J97: 5.433255 | K97: 18.660643 | M97: 2017-05-02 | N97: 2.460242 | O97: 1.322425 | Q97: 5.932918 | R97: 5.433255 | T97: 26.635955 | U97: 18.660643
A98: 2017-04-28 | B98: 74.74 | C98: 1.590322 | D98: 4.54552 | E98: 25.560776 | G98: 2017-04-28 | H98: 9872 | I98: 0.616418 | J98: 4.488275 | K98: 17.833825 | M98: 2017-04-28 | N98: 1.590322 | O98: 0.616418 | Q98: 4.54552 | R98: 4.488275 | T98: 25.560776 | U98: 17.833825
A99: 2017-04-27 | B99: 74.59 | C99: 0.268853 | D99: 4.335702 | E99: 22.005456 | G99: 2017-04-27 | H99: 9860.62 | I99: -0.163515 | J99: 4.367826 | K99: 15.153129 | M99: 2017-04-27 | N99: 0.268853 | O99: -0.163515 | Q99: 4.335702 | R99: 4.367826 | T99: 22.005456 | U99: 15.153129
A100: 2017-04-26 | B100: 74.54 | C100: 0.282524 | D100: 4.265762 | E100: 21.578224 | G100: 2017-04-26 | H100: 9856.45 | I100: -0.469859 | J100: 4.323689 | K100: 14.856023 | M100: 2017-04-26 | N100: 0.282524 | O100: -0.469859 | Q100: 4.265762 | R100: 4.323689 | T100: 21.578224 | U100: 14.856023
A101: 2017-04-25 | B101: 74.62 | C101: 0.390152 | D101: 4.377666 | E101: 22.016005 | G101: 2017-04-25 | H101: 9841.71 | I101: -0.618703 | J101: 4.167677 | K101: 14.969487 | M101: 2017-04-25 | N101: 0.390152 | O101: -0.618703 | Q101: 4.377666 | R101: 4.167677 | T101: 22.016005 | U101: 14.969487
A102: 2017-04-24 | B102: 73.69 | C102: -0.861025 | D102: 3.076791 | E102: 20.800304 | G102: 2017-04-24 | H102: 9717.95 | I102: -1.868427 | J102: 2.857763 | K102: 13.849984 | M102: 2017-04-24 | N102: -0.861025 | O102: -1.868427 | Q102: 3.076791 | R102: 2.857763 | T102: 20.800304 | U102: 13.849984
A103: 2017-04-21 | B103: 73.59 | C103: -1.94537 | D103: 4.34857 | E103: 20.445825 | G103: 2017-04-21 | H103: 9717.41 | I103: -2.557837 | J103: 4.136009 | K103: 13.406546 | M103: 2017-04-21 | N103: -1.94537 | O103: -2.557837 | Q103: 4.34857 | R103: 4.136009 | T103: 20.445825 | U103: 13.406546
A104: 2017-04-20 | B104: 72.85 | C104: -2.030662 | D104: 3.299271 | E104: 20.337097 | G104: 2017-04-20 | H104: 9632.69 | I104: -2.827407 | J104: 3.228112 | K104: 13.133039 | M104: 2017-04-20 | N104: -2.030662 | O104: -2.827407 | Q104: 3.299271 | R104: 3.228112 | T104: 20.337097 | U104: 13.133039
A105: 2017-04-19 | B105: 72.83 | C105: -2.057558 | D105: 3.471576 | E105: 18.453519 | G105: 2017-04-19 | H105: 9639.94 | I105: -2.712266 | J105: 3.453701 | K105: 11.654536 | M105: 2017-04-19 | N105: -2.057558 | O105: -2.712266 | Q105: 3.471576 | R105: 3.453701 | T105: 18.453519 | U105: 11.654536
A106: 2017-04-18 | B106: 73.63 | C106: -0.981711 | D106: 4.318585 | E106: 19.063203 | G106: 2017-04-18 | H106: 9746.56 | I106: -1.636241 | J106: 4.330885 | K106: 12.468829 | M106: 2017-04-18 | N106: -0.981711 | O106: -1.636241 | Q106: 4.318585 | R106: 4.330885 | T106: 19.063203 | U106: 12.468829
A107: 2017-04-17 | B107: 73.6 | C107: -1.022055 | D107: 3.859207 | E107: 18.460103 | G107: 2017-04-17 | H107: 9716.4 | I107: -1.94062 | J107: 3.868393 | K107: 11.677752 | M107: 2017-04-17 | N107: -1.022055 | O107: -1.94062 | Q107: 3.859207 | R107: 3.868393 | T107: 18.460103 | U107: 11.677752
A108: 2017-04-14 | B108: 73.72 | C108: 1.041667 | D108: 3.685497 | E108: 18.948861 | G108: 2017-04-14 | H108: 9732.93 | I108: -0.115761 | J108: 3.775524 | K108: 12.289521 | M108: 2017-04-14 | N108: 1.041667 | O108: -0.115761 | Q108: 3.685497 | R108: 3.775524 | T108: 18.948861 | U108: 12.289521
A109: 2017-04-13 | B109: 74.33 | C109: 2.270226 | D109: 4.543449 | E109: 20.101424 | G109: 2017-04-13 | H109: 9836.68 | I109: 1.436889 | J109: 4.881739 | K109: 13.691505 | M109: 2017-04-13 | N109: 2.270226 | O109: 1.436889 | Q109: 4.543449 | R109: 4.881739 | T109: 20.101424 | U109: 13.691505
A110: 2017-04-12 | B110: 74.18 | C110: 2.984867 | D110: 3.818945 | E110: 21.854173 | G110: 2017-04-12 | H110: 9817.68 | I110: 1.971252 | J110: 4.330417 | K110: 15.079977 | M110: 2017-04-12 | N110: 2.984867 | O110: 1.971252 | Q110: 3.818945 | R110: 4.330417 | T110: 21.854173 | U110: 15.079977
A111: 2017-04-11 | B111: 74.16 | C111: 2.957101 | D111: 4.750523 | E111: 21.590013 | G111: 2017-04-11 | H111: 9832.42 | I111: 2.124349 | J111: 5.207506 | K111: 14.829976 | M111: 2017-04-11 | N111: 2.957101 | O111: 2.124349 | Q111: 4.750523 | R111: 5.207506 | T111: 21.590013 | U111: 14.829976
A112: 2017-04-10 | B112: 74.28 | C112: 3.123698 | D112: 4.717725 | E112: 22.231591 | G112: 2017-04-10 | H112: 9882.54 | I112: 2.64492 | J112: 5.699685 | K112: 15.700287 | M112: 2017-04-10 | N112: 3.123698 | O112: 2.64492 | Q112: 4.717725 | R112: 5.699685 | T112: 22.231591 | U112: 15.700287
A113: 2017-04-07 | B113: 74.21 | C113: 1.964826 | D113: 4.417712 | E113: 23.212143 | G113: 2017-04-07 | H113: 9873.37 | I113: 1.389392 | J113: 5.347186 | K113: 16.290686 | M113: 2017-04-07 | N113: 1.964826 | O113: 1.389392 | Q113: 4.417712 | R113: 5.347186 | T113: 23.212143 | U113: 16.290686
A114: 2017-04-06 | B114: 74.5 | C114: 3.000138 | D114: 4.825759 | E114: 23.476004 | G114: 2017-04-06 | H114: 9897.8 | I114: 2.222227 | J114: 5.60785 | K114: 16.262789 | M114: 2017-04-06 | N114: 3.000138 | O114: 2.222227 | Q114: 4.825759 | R114: 5.60785 | T114: 23.476004 | U114: 16.262789
A115: 2017-04-05 | B115: 75.01 | C115: 3.992791 | D115: 5.790566 | E115: 21.541301 | G115: 2017-04-05 | H115: 9949.48 | I115: 3.122548 | J115: 6.318991 | K115: 14.922582 | M115: 2017-04-05 | N115: 3.992791 | O115: 3.122548 | Q115: 5.790566 | R115: 6.318991 | T115: 21.541301 | U115: 14.922582
A116: 2017-03-31 | B116: 73.57 | C116: 0.505464 | D116: 4.930695 | E116: 17.444967 | G116: 2017-03-31 | H116: 9811.52 | I116: 0.626124 | J116: 6.030367 | K116: 12.19795 | M116: 2017-03-31 | N116: 0.505464 | O116: 0.626124 | Q116: 4.930695 | R116: 6.030367 | T116: 17.444967 | U116: 12.19795
A117: 2017-03-30 | B117: 73.97 | C117: 1.051913 | D117: 5.501203 | E117: 18.320484 | G117: 2017-03-30 | H117: 9848.15 | I117: 1.001798 | J117: 6.426217 | K117: 12.717236 | M117: 2017-03-30 | N117: 1.051913 | O117: 1.001798 | Q117: 5.501203 | R117: 6.426217 | T117: 18.320484 | U117: 12.717236
A118: 2017-03-29 | B118: 74.13 | C118: 1.270492 | D118: 6.830909 | E118: 20.341222 | G118: 2017-03-29 | H118: 9856.25 | I118: 1.084871 | J118: 7.682214 | K118: 14.37681 | M118: 2017-03-29 | N118: 1.270492 | O118: 1.084871 | Q118: 6.830909 | R118: 7.682214 | T118: 20.341222 | U118: 14.37681
A119: 2017-03-28 | B119: 74.52 | C119: 1.803279 | D119: 6.582664 | E119: 20.295874 | G119: 2017-03-28 | H119: 9876.45 | I119: 1.29204 | J119: 7.336384 | K119: 13.647164 | M119: 2017-03-28 | N119: 1.803279 | O119: 1.29204 | Q119: 6.582664 | R119: 7.336384 | T119: 20.295874 | U119: 13.647164
A120: 2017-03-27 | B120: 74.39 | C120: 1.625683 | D120: 7.569063 | E120: 20.254626 | G120: 2017-03-27 | H120: 9876.77 | I120: 1.295322 | J120: 8.425483 | K120: 13.461276 | M120: 2017-03-27 | N120: 1.625683 | O120: 1.295322 | Q120: 7.569063 | R120: 8.425483 | T120: 20.254626 | U120: 13.461276
A121: 2017-03-24 | B121: 74.33 | C121: 1.543716 | D121: 8.031694 | E121: 19.449508 | G121: 2017-03-24 | H121: 9902.98 | I121: 1.56413 | J121: 9.079994 | K121: 13.262606 | M121: 2017-03-24 | N121: 1.543716 | O121: 1.56413 | Q121: 8.031694 | R121: 9.079994 | T121: 19.449508 | U121: 13.262606
A122: 2017-03-23 | B122: 74.58 | C122: 1.690755 | D122: 8.395045 | E122: 19.554601 | G122: 2017-03-23 | H122: 9930.74 | I122: 1.65242 | J122: 9.385767 | K122: 13.285855 | M122: 2017-03-23 | N122: 1.690755 | O122: 1.65242 | Q122: 8.395045 | R122: 9.385767 | T122: 19.554601 | U122: 13.285855
A123: 2017-03-22 | B123: 74.57 | C123: 1.607848 | D123: 7.905561 | E123: 19.52008 | G123: 2017-03-22 | H123: 9922.66 | I123: 1.471349 | J123: 8.816011 | K123: 12.941286 | M123: 2017-03-22 | N123: 1.607848 | O123: 1.471349 | Q123: 7.905561 | R123: 8.816011 | T123: 19.52008 | U123: 12.941286
A124: 2017-03-21 | B124: 75.05 | C124: 2.136636 | D124: 7.536028 | E124: 19.78914 | G124: 2017-03-21 | H124: 9972.49 | I124: 2.136025 | J124: 8.346461 | K124: 13.160439 | M124: 2017-03-21 | N124: 2.136636 | O124: 2.136025 | Q124: 7.536028 | R124: 8.346461 | T124: 19.78914 | U124: 13.160439
A125: 2017-03-20 | B125: 74.36 | C125: 1.349325 | D125: 5.90988 | E125: 18.614731 | G125: 2017-03-20 | H125: 9912.97 | I125: 1.638129 | J125: 7.255251 | K125: 12.510456 | M125: 2017-03-20 | N125: 1.349325 | O125: 1.638129 | Q125: 5.90988 | R125: 7.255251 | T125: 18.614731 | U125: 12.510456
A126: 2017-03-17 | B126: 74.36 | C126: 1.197605 | D126: 4.946134 | E126: 19.757739 | G126: 2017-03-17 | H126: 9908.69 | I126: 1.52596 | J126: 6.239131 | K126: 13.442608 | M126: 2017-03-17 | N126: 1.197605 | O126: 1.52596 | Q126: 4.946134 | R126: 6.239131 | T126: 19.757739 | U126: 13.442608
A127: 2017-03-16 | B127: 73.87 | C127: 0.285094 | D127: 4.254585 | E127: 19.900359 | G127: 2017-03-16 | H127: 9837.83 | I127: 0.681387 | J127: 5.479383 | K127: 13.089685 | M127: 2017-03-16 | N127: 0.285094 | O127: 0.681387 | Q127: 4.254585 | R127: 5.479383 | T127: 19.900359 | U127: 13.089685
A128: 2017-03-15 | B128: 72.98 | C128: -1.244926 | D128: 2.433588 | E128: 19.579645 | G128: 2017-03-15 | H128: 9740.31 | I128: -0.606648 | J128: 4.05925 | K128: 13.112373 | M128: 2017-03-15 | N128: -1.244926 | O128: -0.606648 | Q128: 2.433588 | R128: 4.05925 | T128: 19.579645 | U128: 13.112373
A129: 2017-03-14 | B129: 72.96 | C129: -0.423093 | D129: 2.307319 | E129: 17.906181 | G129: 2017-03-14 | H129: 9744.21 | I129: 0.261658 | J129: 4.010132 | K129: 11.389133 | M129: 2017-03-14 | N129: -0.423093 | O129: 0.261658 | Q129: 2.307319 | R129: 4.010132 | T129: 17.906181 | U129: 11.389133
A130: 2017-03-13 | B130: 72.68 | C130: -0.791701 | D130: 1.747437 | E130: 18.116855 | G130: 2017-03-13 | H130: 9697.34 | I130: -0.133672 | J130: 3.359575 | K130: 11.385068 | M130: 2017-03-13 | N130: -0.791701 | O130: -0.133672 | Q130: 1.747437 | R130: 3.359575 | T130: 18.116855 | U130: 11.385068
A131: 2017-03-10 | B131: 72.03 | C131: -1.166301 | D131: 0.754801 | E131: 17.68807 | G131: 2017-03-10 | H131: 9627.89 | I131: -0.390043 | J131: 2.504184 | K131: 11.167573 | M131: 2017-03-10 | N131: =IF(ISERROR(VLOOKUP($M131,XX_TEJ6,3,FALSE)=TRUE),"",VLOOKUP($M131,XX_TEJ6,3,FALSE)) -> -1.166301 | O131: =IF(ISERROR(VLOOKUP($M131,XX_TEJ7,3,FALSE)=TRUE),"",VLOOKUP($M131,XX_TEJ7,3,FALSE)) -> -0.390043 | Q131: =IF(ISERROR(VLOOKUP($M131,XX_TEJ6,4,FALSE)=TRUE),"",VLOOKUP($M131,XX_TEJ6,4,FALSE)) -> 0.754801 | R131: =IF(ISERROR(VLOOKUP($M131,XX_TEJ7,4,FALSE)=TRUE),"",VLOOKUP($M131,XX_TEJ7,4,FALSE)) -> 2.504184 | T131: =IF(ISERROR(VLOOKUP($M131,XX_TEJ6,5,FALSE)=TRUE),"",VLOOKUP($M131,XX_TEJ6,5,FALSE)) -> 17.68807 | U131: =IF(ISERROR(VLOOKUP($M131,XX_TEJ7,5,FALSE)=TRUE),"",VLOOKUP($M131,XX_TEJ7,5,FALSE)) -> 11.167573
A132: 2017-03-09 | B132: 72.17 | C132: 0.041586 | D132: 0.950632 | E132: 18.383477 | G132: 2017-03-09 | H132: 9658.61 | I132: 0.713542 | J132: 2.831247 | K132: 11.865728 | M132: =IF($A132="","",$A132) -> 2017-03-09 | N132: 0.041586 | O132: 0.713542 | Q132: 0.950632 | R132: 2.831247 | T132: 18.383477 | U132: 11.865728
A133: 2017-03-08 | B133: 72.96 | C133: 1.672241 | D133: 2.2233 | E133: 19.245179 | G133: 2017-03-08 | H133: 9753.45 | I133: 2.202604 | J133: 4.027257 | K133: 12.570418 | M133: 2017-03-08 | N133: 1.672241 | O133: 2.202604 | Q133: 2.2233 | R133: 4.027257 | T133: 19.245179 | U133: 12.570418
A134: 2017-03-07 | B134: 72.78 | C134: 1.181704 | D134: 3.529862 | E134: 19.176559 | G134: 2017-03-07 | H134: 9738.07 | I134: 1.920654 | J134: 5.118584 | K134: 12.454689 | M134: 2017-03-07 | N134: 1.181704 | O134: 1.920654 | Q134: 3.529862 | R134: 5.118584 | T134: 19.176559 | U134: 12.454689
A135: 2017-03-06 | B135: 72.33 | C135: 0.87119 | D135: 2.98992 | E135: 18.383565 | G135: 2017-03-06 | H135: 9682.63 | I135: 1.516249 | J135: 4.668368 | K135: 12.02145 | M135: 2017-03-06 | N135: 0.87119 | O135: 1.516249 | Q135: 2.98992 | R135: 4.668368 | T135: 18.383565 | U135: 12.02145
A136: 2017-03-03 | B136: 72.13 | C136: 1.296099 | D136: 3.642233 | E136: 18.224287 | G136: 2017-03-03 | H136: 9648.21 | I136: 2.037426 | J136: 4.99179 | K136: 12.034896 | M136: 2017-03-03 | N136: 1.296099 | O136: 2.037426 | Q136: 3.642233 | R136: 4.99179 | T136: 18.224287 | U136: 12.034896
A137: 2017-03-02 | B137: 72.64 | C137: 2.082345 | D137: 4.375042 | E137: 20.373994 | G137: 2017-03-02 | H137: 9691.8 | I137: 2.787473 | J137: 5.466136 | K137: 13.433325 | M137: 2017-03-02 | N137: 2.082345 | O137: 2.787473 | Q137: 4.375042 | R137: 5.466136 | T137: 20.373994 | U137: 13.433325
A138: 2017-03-01 | B138: 72.44 | C138: 1.328305 | D138: 3.003269 | E138: 21.088268 | G138: 2017-03-01 | H138: 9674.78 | I138: 2.400838 | J138: 4.439452 | K138: 14.012885 | M138: 2017-03-01 | N138: 1.328305 | O138: 2.400838 | Q138: 3.003269 | R138: 4.439452 | T138: 21.088268 | U138: 14.012885
A139: 2017-02-24 | B139: 73.2 | C139: 2.391385 | D139: 4.330291 | E139: 23.333549 | G139: 2017-02-24 | H139: 9750.47 | I139: 3.201964 | J139: 5.516459 | K139: 15.923012 | M139: 2017-02-24 | N139: 2.391385 | O139: 3.201964 | Q139: 4.330291 | R139: 5.516459 | T139: 23.333549 | U139: 15.923012
A140: 2017-02-23 | B140: 73.34 | C140: 2.741651 | D140: 4.646395 | E140: 24.766378 | G140: 2017-02-23 | H140: 9769.31 | I140: 3.663605 | J140: 6.440022 | K140: 17.213341 | M140: 2017-02-23 | N140: 2.741651 | O140: 3.663605 | Q140: 4.646395 | R140: 6.440022 | T140: 24.766378 | U140: 17.213341
A141: 2017-02-22 | B141: 73.39 | C141: 4.064975 | D141: 5.319649 | E141: 24.667232 | G141: 2017-02-22 | H141: 9778.78 | I141: 4.793676 | J141: 7.06627 | K141: 17.439123 | M141: 2017-02-22 | N141: 4.064975 | O141: 4.793676 | Q141: 5.319649 | R141: 7.06627 | T141: 24.667232 | U141: 17.439123
A142: 2017-02-21 | B142: 73.48 | C142: 4.192593 | D142: 6.62976 | E142: 24.779203 | G142: 2017-02-21 | H142: 9763.93 | I142: 4.634537 | J142: 7.994815 | K142: 17.283881 | M142: 2017-02-21 | N142: 4.192593 | O142: 4.634537 | Q142: 6.62976 | R142: 7.994815 | T142: 24.779203 | U142: 17.283881
A143: 2017-02-20 | B143: 73.37 | C143: 4.036616 | D143: 6.757687 | E143: 24.592408 | G143: 2017-02-20 | H143: 9753.2 | I143: 4.51955 | J143: 8.263152 | K143: 17.154993 | M143: 2017-02-20 | N143: 4.036616 | O143: 4.51955 | Q143: 6.757687 | R143: 8.263152 | T143: 24.592408 | U143: 17.154993
A144: 2017-02-18 | B144: 73.48 | C144: 4.106066 | D144: 6.917744 | E144: 24.738319 | G144: 2017-02-18 | H144: 9779.92 | I144: 4.687983 | J144: 8.559751 | K144: 17.622467 | M144: 2017-02-18 | N144: 4.106066 | O144: 4.687983 | Q144: 6.917744 | R144: 8.559751 | T144: 24.738319 | U144: 17.622467
A145: 2017-02-17 | B145: 73.48 | C145: 3.689872 | D145: 6.872169 | E145: 26.541914 | G145: 2017-02-17 | H145: 9759.76 | I145: 4.331912 | J145: 8.498921 | K145: 18.814986 | M145: 2017-02-17 | N145: 3.689872 | O145: 4.331912 | Q145: 6.872169 | R145: 8.498921 | T145: 26.541914 | U145: 18.814986
A146: 2017-02-16 | B146: 73.66 | C146: 4.65078 | D146: 7.746338 | E146: 26.809746 | G146: 2017-02-16 | H146: 9771.25 | I146: 5.153928 | J146: 9.027116 | K146: 18.986443 | M146: 2017-02-16 | N146: 4.65078 | O146: 5.153928 | Q146: 7.746338 | R146: 9.027116 | T146: 26.809746 | U146: 18.986443
A147: 2017-02-15 | B147: 73.9 | C147: 3.938663 | D147: 8.453848 | E147: 29.921064 | G147: 2017-02-15 | H147: 9799.76 | I147: 4.488086 | J147: 9.727098 | K147: 21.486988 | M147: 2017-02-15 | N147: 3.938663 | O147: 4.488086 | Q147: 8.453848 | R147: 9.727098 | T147: 29.921064 | U147: 21.486988
A148: 2017-02-14 | B148: 73.27 | C148: 3.052583 | D148: 7.313879 | E148: 28.551755 | G148: 2017-02-14 | H148: 9718.78 | I148: 3.624653 | J148: 8.706322 | K148: 20.535533 | M148: 2017-02-14 | N148: 3.052583 | O148: 3.624653 | Q148: 7.313879 | R148: 8.706322 | T148: 28.551755 | U148: 20.535533
A149: 2017-02-13 | B149: 73.26 | C149: 3.038518 | D149: 7.115317 | E149: 28.534211 | G149: 2017-02-13 | H149: 9710.32 | I149: 3.534449 | J149: 8.401207 | K149: 20.430609 | M149: 2017-02-13 | N149: 3.038518 | O149: 3.534449 | Q149: 7.115317 | R149: 8.401207 | T149: 28.534211 | U149: 20.430609
A150: 2017-02-10 | B150: 72.88 | C150: 2.744047 | D150: 4.062564 | E150: 27.867503 | G150: 2017-02-10 | H150: 9665.59 | I150: 3.379274 | J150: 5.609702 | K150: 19.875853 | M150: 2017-02-10 | N150: 2.744047 | O150: 3.379274 | Q150: 4.062564 | R150: 5.609702 | T150: 27.867503 | U150: 19.875853
A151: 2017-02-09 | B151: 72.14 | C151: 1.770897 | D151: 5.267232 | E151: 26.569178 | G151: 2017-02-09 | H151: 9590.18 | I151: 2.65199 | J151: 7.234323 | K151: 18.940593 | M151: 2017-02-09 | N151: 1.770897 | O151: 2.65199 | Q151: 5.267232 | R151: 7.234323 | T151: 26.569178 | U151: 18.940593
A152: 2017-02-08 | B152: 71.76 | C152: 0.970422 | D152: 1.54269 | E152: 25.90247 | G152: 2017-02-08 | H152: 9543.25 | I152: 1.824861 | J152: 3.534825 | K152: 18.358551 | M152: 2017-02-08 | N152: 0.970422 | O152: 1.824861 | Q152: 1.54269 | R152: 3.534825 | T152: 25.90247 | U152: 18.358551
A153: 2017-02-07 | B153: 73.63 | C153: 1.209622 | D153: 2.093733 | E153: 26.200734 | G153: 2017-02-07 | H153: 9554.56 | I153: 1.945537 | J153: 3.968731 | K153: 18.498822 | M153: 2017-02-07 | N153: 1.209622 | O153: 1.945537 | Q153: 2.093733 | R153: 3.968731 | T153: 26.200734 | U153: 18.498822
A154: 2017-02-06 | B154: 73.4 | C154: 0.893471 | D154: 3.292992 | E154: 25.806517 | G154: 2017-02-06 | H154: 9538.01 | I154: 1.768951 | J154: 5.181432 | K154: 18.293563 | M154: 2017-02-06 | N154: 0.893471 | O154: 1.768951 | Q154: 3.292992 | R154: 5.181432 | T154: 25.806517 | U154: 18.293563
A155: 2017-02-03 | B155: 72.89 | C155: 1.193947 | D155: 2.589726 | E155: 24.932385 | G155: 2017-02-03 | H155: 9455.56 | I155: 1.970046 | J155: 4.282325 | K155: 17.270991 | M155: 2017-02-03 | N155: 1.193947 | O155: 1.970046 | Q155: 2.589726 | R155: 4.282325 | T155: 24.932385 | U155: 17.270991
A156: 2017-02-02 | B156: 72.84 | C156: 1.490874 | D156: 1.746054 | E156: 24.027674 | G156: 2017-02-02 | H156: 9428.97 | I156: 1.896255 | J156: 3.172434 | K156: 15.959804 | M156: 2017-02-02 | N156: 1.490874 | O156: 1.896255 | Q156: 1.746054 | R156: 3.172434 | T156: 24.027674 | U156: 15.959804
A157: 2017-01-24 | B157: 73.18 | C157: 1.964609 | D157: 0.743392 | E157: 24.313857 | G157: 2017-01-24 | H157: 9447.95 | I157: 2.101367 | J157: 1.698902 | K157: 15.99394 | M157: 2017-01-24 | N157: 1.964609 | O157: 2.101367 | Q157: 0.743392 | R157: 1.698902 | T157: 24.313857 | U157: 15.99394
A158: 2017-01-23 | B158: 73.07 | C158: 3.748403 | D158: 0.536599 | E158: 30.638073 | G158: 2017-01-23 | H158: 9424.05 | I158: 3.804645 | J158: 1.262334 | K158: 21.503756 | M158: 2017-01-23 | N158: 3.748403 | O158: 3.804645 | Q158: 0.536599 | R158: 1.262334 | T158: 30.638073 | U158: 21.503756
A159: 2017-01-20 | B159: 72.19 | C159: 0.445248 | D159: -0.919572 | E159: 30.540319 | G159: 2017-01-20 | H159: 9331.46 | I159: 0.963493 | J159: 0.15262 | K159: 21.201644 | M159: 2017-01-20 | N159: 0.445248 | O159: 0.963493 | Q159: -0.919572 | R159: 0.15262 | T159: 30.540319 | U159: 21.201644
A160: 2017-01-19 | B160: 72.05 | C160: 0.334215 | D160: -0.771244 | E160: 27.419203 | G160: 2017-01-19 | H160: 9318.12 | I160: 0.852877 | J160: 0.367622 | K160: 18.62842 | M160: 2017-01-19 | N160: 0.334215 | O160: 0.852877 | Q160: -0.771244 | R160: 0.367622 | T160: 27.419203 | U160: 18.62842
A161: 2017-01-18 | B161: 72.25 | C161: -0.386047 | D161: 0.361161 | E161: 28.446097 | G161: 2017-01-18 | H161: 9341.97 | I161: 0.162864 | J161: 1.29454 | K161: 19.597423 | M161: 2017-01-18 | N161: -0.386047 | O161: 0.162864 | Q161: 0.361161 | R161: 1.29454 | T161: 28.446097 | U161: 19.597423
A162: 2017-01-17 | B162: 72.54 | C162: 0.013787 | D162: 1.327001 | E162: 28.758142 | G162: 2017-01-17 | H162: 9354.53 | I162: 0.29753 | J162: 1.943175 | K162: 20.516851 | M162: 2017-01-17 | N162: 0.013787 | O162: 0.29753 | Q162: 1.327001 | R162: 1.943175 | T162: 28.758142 | U162: 20.516851
A163: 2017-01-16 | B163: 72.05 | C163: -0.661795 | D163: 0.572306 | E163: 27.888395 | G163: 2017-01-16 | H163: 9292.33 | I163: -0.369366 | J163: 1.387427 | K163: 19.715512 | M163: 2017-01-16 | N163: -0.661795 | O163: -0.369366 | Q163: 0.572306 | R163: 1.387427 | T163: 27.888395 | U163: 19.715512
A164: 2017-01-13 | B164: 72.78 | C164: -0.464989 | D164: 1.195773 | E164: 28.732685 | G164: 2017-01-13 | H164: 9378.83 | I164: -0.03528 | J164: 1.731826 | K164: 19.863226 | M164: 2017-01-13 | N164: -0.464989 | O164: -0.03528 | Q164: 1.195773 | R164: 1.731826 | T164: 28.732685 | U164: 19.863226
A165: 2017-01-12 | B165: 73.14 | C165: 0.329218 | D165: 1.259864 | E165: 30.280022 | G165: 2017-01-12 | H165: 9410.18 | I165: 0.644282 | J165: 1.703089 | K165: 21.133302 | M165: 2017-01-12 | N165: 0.329218 | O165: 0.644282 | Q165: 1.259864 | R165: 1.703089 | T165: 30.280022 | U165: 21.133302
A166: 2017-01-11 | B166: 72.47 | C166: -0.97021 | D166: 0.933148 | E166: 29.291345 | G166: 2017-01-11 | H166: 9345.74 | I166: -0.499751 | J166: 1.365753 | K166: 19.995326 | M166: 2017-01-11 | N166: -0.97021 | O166: -0.499751 | Q166: 0.933148 | R166: 1.365753 | T166: 29.291345 | U166: 19.995326
A167: 2017-01-10 | B167: 72.61 | C167: -0.778901 | D167: 1.00153 | E167: 27.873396 | G167: 2017-01-10 | H167: 9349.64 | I167: -0.458229 | J167: 0.904724 | K167: 18.440278 | M167: 2017-01-10 | N167: -0.778901 | O167: -0.458229 | Q167: 1.00153 | R167: 0.904724 | T167: 27.873396 | U167: 18.440278
A168: 2017-01-09 | B168: 72.56 | C168: -0.847226 | D168: 0.931979 | E168: 27.785341 | G168: 2017-01-09 | H168: 9342.42 | I168: -0.535098 | J168: 0.826803 | K168: 18.348816 | M168: 2017-01-09 | N168: -0.847226 | O168: -0.535098 | Q168: 0.931979 | R168: 0.826803 | T168: 27.785341 | U168: 18.348816
A169: 2017-01-06 | B169: 72.75 | C169: 1.196272 | D169: 1.041667 | E169: 26.296257 | G169: 2017-01-06 | H169: 9372.22 | I169: 1.312864 | J169: 0.946866 | K169: 17.293649 | M169: 2017-01-06 | N169: 1.196272 | O169: 1.312864 | Q169: 1.041667 | R169: 0.946866 | T169: 26.296257 | U169: 17.293649
A170: 2017-01-05 | B170: 72.58 | C170: 2.095935 | D170: 0.93172 | E170: 24.506456 | G170: 2017-01-05 | H170: 9358.14 | I170: 2.15574 | J170: 0.925986 | K170: 15.8887 | M170: 2017-01-05 | N170: 2.095935 | O170: 2.15574 | Q170: 0.93172 | R170: 0.925986 | T170: 24.506456 | U170: 15.8887
A171: 2017-01-04 | B171: 72.07 | C171: 1.165076 | D171: 0.027759 | E171: 22.944046 | G171: 2017-01-04 | H171: 9286.96 | I171: 1.060668 | J171: -0.008721 | K171: 14.452335 | M171: 2017-01-04 | N171: 1.165076 | O171: 1.060668 | Q171: 0.027759 | R171: -0.008721 | T171: 22.944046 | U171: 14.452335
A172: 2017-01-03 | B172: 72.03 | C172: 1.108928 | D172: 0.614611 | E172: 19.102427 | G172: 2017-01-03 | H172: 9272.88 | I172: 0.90745 | J172: 0.418878 | K172: 11.211481 | M172: 2017-01-03 | N172: 1.108928 | O172: 0.90745 | Q172: 0.614611 | R172: 0.418878 | T172: 19.102427 | U172: 11.211481
A173: 2016-12-30 | B173: 71.77 | C173: -0.069618 | D173: 1.22708 | E173: 18.672514 | G173: 2016-12-30 | H173: 9253.5 | I173: 0.138409 | J173: 0.945254 | K173: 10.979053 | M173: 2016-12-30 | N173: -0.069618 | O173: 0.138409 | Q173: 1.22708 | R173: 0.945254 | T173: 18.672514 | U173: 10.979053
A174: 2016-12-29 | B174: 71.03 | C174: -0.726765 | D174: -1.223752 | E174: 18.240793 | G174: 2016-12-29 | H174: 9153.09 | I174: -0.427419 | J174: -1.27075 | K174: 10.359167 | M174: 2016-12-29 | N174: -0.726765 | O174: -0.427419 | Q174: -1.223752 | R174: -1.27075 | T174: 18.240793 | U174: 10.359167
A175: 2016-12-28 | B175: 71.57 | C175: -0.458971 | D175: 0.6752 | E175: 17.918062 | G175: 2016-12-28 | H175: 9201.4 | I175: -0.225975 | J175: 0.074827 | K175: 10.084477 | M175: 2016-12-28 | N175: -0.458971 | O175: -0.225975 | Q175: 0.6752 | R175: 0.074827 | T175: 17.918062 | U175: 10.084477
A176: 2016-12-27 | B176: 70.79 | C176: -0.715288 | D176: -0.422 | E176: 16.689919 | G176: 2016-12-27 | H176: 9109.27 | I176: -0.543723 | J176: -0.927183 | K176: 8.919826 | M176: 2016-12-27 | N176: -0.715288 | O176: -0.543723 | Q176: -0.422 | R176: -0.927183 | T176: 16.689919 | U176: 8.919826
A177: 2016-12-26 | B177: 70.78 | C177: -0.729313 | D177: -0.436067 | E177: 16.673435 | G177: 2016-12-26 | H177: 9110.54 | I177: -0.529857 | J177: -0.91337 | K177: 8.935011 | M177: 2016-12-26 | N177: -0.729313 | O177: -0.529857 | Q177: -0.436067 | R177: -0.91337 | T177: 16.673435 | U177: 8.935011
A178: 2016-12-23 | B178: 70.43 | C178: -1.826038 | D178: -2.262004 | E178: 16.89598 | G178: 2016-12-23 | H178: 9078.64 | I178: -1.085068 | J178: -2.218508 | K178: 9.174694 | M178: 2016-12-23 | N178: -1.826038 | O178: -1.085068 | Q178: -2.262004 | R178: -2.218508 | T178: 16.89598 | U178: 9.174694
A179: 2016-12-22 | B179: 70.74 | C179: -0.827141 | D179: -1.159704 | E179: 17.73868 | G179: 2016-12-22 | H179: 9118.75 | I179: -0.160291 | J179: -1.261578 | K179: 9.96064 | M179: 2016-12-22 | N179: -0.827141 | O179: -0.160291 | Q179: -1.159704 | R179: -1.261578 | T179: 17.73868 | U179: 9.96064
A180: 2016-12-21 | B180: 71.44 | C180: 1.275872 | D180: -0.013996 | E180: 19.335414 | G180: 2016-12-21 | H180: 9204.26 | I180: 1.804535 | J180: -0.262665 | K180: 11.133435 | M180: 2016-12-21 | N180: 1.275872 | O180: 1.804535 | Q180: -0.013996 | R180: -0.262665 | T180: 19.335414 | U180: 11.133435
A181: 2016-12-20 | B181: 71.87 | C181: 2.160625 | D181: 1.182599 | E181: 20.232261 | G181: 2016-12-20 | H181: 9242.41 | I181: 2.593245 | J181: 0.882271 | K181: 11.9299 | M181: 2016-12-20 | N181: 2.160625 | O181: 2.593245 | Q181: 1.182599 | R181: 0.882271 | T181: 20.232261 | U181: 11.9299
A182: 2016-12-19 | B182: 71.81 | C182: 2.075338 | D182: 1.169343 | E182: 20.131886 | G182: 2016-12-19 | H182: 9239.32 | I182: 2.558945 | J182: 0.944402 | K182: 11.892478 | M182: 2016-12-19 | N182: 2.075338 | O182: 2.558945 | Q182: 1.169343 | R182: 0.944402 | T182: 20.131886 | U182: 11.892478
A183: 2016-12-16 | B183: 72.53 | C183: 3.643898 | D183: 5.898671 | E183: 21.880222 | G183: 2016-12-16 | H183: 9326.78 | I183: 4.067742 | J183: 4.768206 | K183: 13.954398 | M183: 2016-12-16 | N183: 3.643898 | O183: 4.067742 | Q183: 5.898671 | R183: 4.768206 | T183: 21.880222 | U183: 13.954398
A184: 2016-12-15 | B184: 72.93 | C184: 4.55914 | D184: 6.482698 | E184: 24.474048 | G184: 2016-12-15 | H184: 9360.35 | I184: 4.80706 | J184: 5.1453 | K184: 15.941338 | M184: 2016-12-15 | N184: 4.55914 | O184: 4.80706 | Q184: 6.482698 | R184: 5.1453 | T184: 24.474048 | U184: 15.941338
A185: 2016-12-14 | B185: 73 | C185: 4.44985 | D185: 6.584903 | E185: 24.635549 | G185: 2016-12-14 | H185: 9368.52 | I185: 4.7886 | J185: 5.237074 | K185: 16.521562 | M185: 2016-12-14 | N185: 4.44985 | O185: 4.7886 | Q185: 6.584903 | R185: 5.237074 | T185: 24.635549 | U185: 16.521562
A186: 2016-12-13 | B186: 73.12 | C186: 4.442223 | D186: 6.07863 | E186: 23.342594 | G186: 2016-12-13 | H186: 9382.14 | I186: 4.737568 | J186: 4.935895 | K186: 15.602109 | M186: 2016-12-13 | N186: 4.442223 | O186: 4.737568 | Q186: 6.07863 | R186: 4.935895 | T186: 23.342594 | U186: 15.602109
A187: 2016-12-12 | B187: 72.9 | C187: 4.127982 | D187: 5.851604 | E187: 22.971487 | G187: 2016-12-12 | H187: 9349.94 | I187: 4.378103 | J187: 4.502932 | K187: 15.205356 | M187: 2016-12-12 | N187: 4.127982 | O187: 4.378103 | Q187: 5.851604 | R187: 4.502932 | T187: 22.971487 | U187: 15.205356
A188: 2016-12-09 | B188: 73.18 | C188: 4.319316 | D188: 3.654391 | E188: 22.02047 | G188: 2016-12-09 | H188: 9392.68 | I188: 5.025941 | J188: 2.485575 | K188: 14.132609 | M188: 2016-12-09 | N188: 4.319316 | O188: 5.025941 | Q188: 3.654391 | R188: 2.485575 | T188: 22.02047 | U188: 14.132609
A189: 2016-12-08 | B189: 73.06 | C189: 0.9953 | D189: 1.9679 | E189: 20.314225 | G189: 2016-12-08 | H189: 9375.86 | I189: 1.718809 | J189: 1.219598 | K189: 12.368376 | M189: 2016-12-08 | N189: 0.9953 | O189: 1.718809 | Q189: 1.9679 | R189: 1.219598 | T189: 20.314225 | U189: 12.368376
A190: 2016-12-07 | B190: 71.96 | C190: -0.221852 | D190: 0.194932 | E190: 16.905226 | G190: 2016-12-07 | H190: 9263.89 | I190: 0.805781 | J190: 0.052057 | K190: 9.576463 | M190: 2016-12-07 | N190: -0.221852 | O190: 0.805781 | Q190: 0.194932 | R190: 0.052057 | T190: 16.905226 | U190: 9.576463
A191: 2016-12-06 | B191: 71.89 | C191: 1.168027 | D191: 1.225007 | E191: 17.850667 | G191: 2016-12-06 | H191: 9250.77 | I191: 2.013862 | J191: 0.750611 | K191: 10.146572 | M191: 2016-12-06 | N191: 1.168027 | O191: 2.013862 | Q191: 1.225007 | R191: 0.750611 | T191: 17.850667 | U191: 10.146572
A192: 2016-12-05 | B192: 71.09 | C192: 0.042218 | D192: 1.181327 | E192: 16.539211 | G192: 2016-12-05 | H192: 9160.66 | I192: 1.020164 | J192: 0.775896 | K192: 9.073655 | M192: 2016-12-05 | N192: 0.042218 | O192: 1.020164 | Q192: 1.181327 | R192: 0.775896 | T192: 16.539211 | U192: 9.073655
A193: 2016-12-02 | B193: 71.24 | C193: -0.488895 | D193: 2.725306 | E193: 15.494563 | G193: 2016-12-02 | H193: 9189.49 | I193: 0.552027 | J193: 2.246886 | K193: 8.656206 | M193: 2016-12-02 | N193: -0.488895 | O193: 0.552027 | Q193: 2.725306 | R193: 2.246886 | T193: 15.494563 | U193: 8.656206
A194: 2016-12-01 | B194: 71.99 | C194: -0.785557 | D194: 4.242688 | E194: 16.523848 | G194: 2016-12-01 | H194: 9263.53 | I194: -0.098892 | J194: 2.914961 | K194: 9.455295 | M194: 2016-12-01 | N194: -0.785557 | O194: -0.098892 | Q194: 4.242688 | R194: 2.914961 | T194: 16.523848 | U194: 9.455295
A195: 2016-11-30 | B195: 71.82 | C195: -1.128855 | D195: 3.085977 | E195: 18.600207 | G195: 2016-11-30 | H195: 9240.71 | I195: -0.531855 | J195: 1.895058 | K195: 11.058083 | M195: 2016-11-30 | N195: =IF(ISERROR(VLOOKUP($M195,XX_TEJ6,3,FALSE)=TRUE),"",VLOOKUP($M195,XX_TEJ6,3,FALSE)) -> -1.128855 | O195: =IF(ISERROR(VLOOKUP($M195,XX_TEJ7,3,FALSE)=TRUE),"",VLOOKUP($M195,XX_TEJ7,3,FALSE)) -> -0.531855 | Q195: =IF(ISERROR(VLOOKUP($M195,XX_TEJ6,4,FALSE)=TRUE),"",VLOOKUP($M195,XX_TEJ6,4,FALSE)) -> 3.085977 | R195: =IF(ISERROR(VLOOKUP($M195,XX_TEJ7,4,FALSE)=TRUE),"",VLOOKUP($M195,XX_TEJ7,4,FALSE)) -> 1.895058 | T195: =IF(ISERROR(VLOOKUP($M195,XX_TEJ6,5,FALSE)=TRUE),"",VLOOKUP($M195,XX_TEJ6,5,FALSE)) -> 18.600207 | U195: =IF(ISERROR(VLOOKUP($M195,XX_TEJ7,5,FALSE)=TRUE),"",VLOOKUP($M195,XX_TEJ7,5,FALSE)) -> 11.058083
A196: 2016-11-29 | B196: 71.55 | C196: -1.744026 | D196: 1.995723 | E196: 17.084726 | G196: 2016-11-29 | H196: 9192.38 | I196: -1.230697 | J196: 0.902398 | K196: 9.453944 | M196: =IF($A196="","",$A196) -> 2016-11-29 | N196: -1.744026 | O196: -1.230697 | Q196: 1.995723 | R196: 0.902398 | T196: 17.084726 | U196: 9.453944
A197: 2016-11-28 | B197: 71.9 | C197: -1.263389 | D197: 2.261414 | E197: 17.657468 | G197: 2016-11-28 | H197: 9222.24 | I197: -0.909861 | J197: 0.99127 | K197: 9.809488 | M197: 2016-11-28 | N197: -1.263389 | O197: -0.909861 | Q197: 2.261414 | R197: 0.99127 | T197: 17.657468 | U197: 9.809488
A198: 2016-11-25 | B198: 71.3 | C198: -3.045961 | D198: 1.523565 | E198: 16.430943 | G198: 2016-11-25 | H198: 9159.07 | I198: -2.414111 | J198: 0.478308 | K198: 9.216886 | M198: 2016-11-25 | N198: -3.045961 | O198: -2.414111 | Q198: 1.523565 | R198: 0.478308 | T198: 16.430943 | U198: 9.216886
A199: 2016-11-24 | B199: 71.34 | C199: -2.193584 | D199: 2.973441 | E199: 16.552668 | G199: 2016-11-24 | H199: 9152.11 | I199: -1.827729 | J199: 1.494115 | K199: 8.951875 | M199: 2016-11-24 | N199: -2.193584 | O199: -1.827729 | Q199: 2.973441 | R199: 1.494115 | T199: 16.552668 | U199: 8.951875
A200: 2016-11-23 | B200: 71.74 | C200: -1.293341 | D200: 3.371758 | E200: 15.878323 | G200: 2016-11-23 | H200: 9178.23 | I200: -1.379026 | J200: 1.631061 | K200: 8.160759 | M200: 2016-11-23 | N200: -1.293341 | O200: -1.379026 | Q200: 3.371758 | R200: 1.631061 | T200: 15.878323 | U200: 8.160759
... 66 more rows
